{"text_format":"1","workbook":"xlsx","n_sheets":5,"sheets":["Notes","Summary","OP STP","Orgs","BS"],"not_rendered":{"charts":0,"images":0,"macros":1,"external_links":1,"defined_names":4,"comments":0,"pivot_tables":0},"unopened":[],"bounds":{"document_bytes":16777216,"sheet_cells":100000,"rows_first":2000,"rows_last":500,"rows_between":2000,"halvings":0,"cell_chars":16384,"cell_head_chars":4096},"cells_cut":0,"cells_raw":0,"read":"whole","date_system":"1900"}

{"sheet":"Notes","index":0,"n_rows":2,"n_cols":10,"rows_kept":2,"cut":false,"hidden":false,"merged":[]}
[]
["Outpatients Friends and Family Test (FFT) Data - July 2021",null,null,null,null,null,null,null,null,"  Show data for:"]

{"sheet":"Summary","index":1,"n_rows":10,"n_cols":10,"rows_kept":10,"cut":false,"hidden":false,"merged":[[5,1,6,1],[5,4,5,5],[5,6,5,7],[5,8,5,9]]}
[]
[]
[]
[]
[]
[null,"FFT","Number of organisations submitting","Total responses to date","Responses",null,"Percentage Positive",null,"Percentage Negative"]
[null,null,"2021-07-01","2021-07-01","2021-07-01","2021-06-26","2021-07-01","2021-06-26","2021-07-01","2021-06-26"]
[null,"Total",228,21238776,304963,323823,0.9302407177264127,0.92897972040281263,3.4623872404193297E-2,3.4636205581444181E-2]
[null,"NHS",136,19928221,296381,315864,0.9287321729213972,0.92765221905995054,3.5362311016940574E-2,3.5339705011760904E-2]
[null,"IS",92,1310903,8582,7959,0.982405033791657,0.98178163085814796,9.0887904917268704E-3,6.6591280311596932E-3]

{"sheet":"OP STP","index":2,"n_rows":55,"n_cols":12,"rows_kept":55,"cut":false,"hidden":false,"merged":[[7,5,8,5],[7,6,7,11],[4,1,5,1],[4,4,5,4],[7,0,8,0],[7,1,8,1],[7,2,8,2],[7,3,8,3],[7,4,8,4]]}
[]
[]
[]
[]
[]
[]
[]
["STP Code","STP Name","Total Responses","Total Eligible","Percentage Positive","Percentage Negative","Breakdown of Responses"]
[null,null,null,null,null,null,"Very Good","Good","Neither Good nor Poor","Poor","Very Poor","Don't Know"]
[null,"England (including Independent Sector Providers)",304963,4536345,0.9302407177264127,3.4623872404193297E-2,243023,40666,8131,4686,5873,2584]
[null,"England (excluding Independent Sector Providers)",296381,4351164,0.92873024923999847,3.5363265526467624E-2,235818,39440,8064,4652,5829,2578]
[null,"Selection (excluding suppressed data)",{"$f":"SUBTOTAL(9, C13:C56)","v":304963},{"$f":"SUBTOTAL(9, D13:D56)","v":4536345},{"$f":"IFERROR((G12+H12)/C12, \"-\")","v":0.9302407177264127},{"$f":"IFERROR((J12+K12)/C12, \"-\")","v":3.4623872404193297E-2},{"$f":"SUBTOTAL(9, G13:G56)","v":243023},40666,8131,4686,5873,2584]
["QE1","Healthier Lancashire and South Cumbria",7564,137355,0.93812797461660502,3.0407191961924908E-2,6103,993,187,126,104,51]
["QF7","South Yorkshire and Bassetlaw STP",9041,199734,0.93595841168012384,3.0527596504811415E-2,7495,967,236,120,156,67]
["QGH","Herefordshire and Worcestershire STP",4910,43154,0.91853360488798375,4.3584521384928715E-2,3739,771,168,103,111,18]
["QH8","Mid and South Essex STP",6399,27987,0.91686200968901388,3.5630567276136893E-2,4900,967,223,112,116,81]
["QHG","Bedfordshire, Luton and Milton Keynes STP",1044,46922,0.95114942528735635,1.7241379310344827E-2,780,213,29,4,14,4]
["QHL","Birmingham and Solihull STP",893,136829,0.97312430011198203,1.7917133258678612E-2,773,96,5,9,7,3]
["QHM","Cumbria and North East STP",3511,214648,0.95442893762460834,2.0791797208772431E-2,2856,495,71,36,37,16]
["QJ2","Joined Up Care Derbyshire STP",5279,73142,0.92801666982383024,3.731767380185641E-2,4029,870,169,111,86,14]
["QJG","Suffolk and North East Essex STP",5138,60416,0.94024912417282991,2.9388867263526665E-2,4185,646,109,49,102,47]
["QJK","Devon STP",414,94706,0.96618357487922701,1.4492753623188406E-2,362,38,7,0,6,1]
["QJM","Lincolnshire STP",2860,41027,0.91783216783216781,3.5664335664335661E-2,2151,474,105,46,56,28]
["QK1","Leicester, Leicestershire and Rutland STP",9653,63193,0.94281570496218792,2.6105873821609862E-2,8114,987,256,114,138,44]
["QKK","Our Healthier South East London STP",10641,199333,0.90433229959590267,5.2908561225448736E-2,7641,1982,423,257,306,32]
["QKS","Kent and Medway STP",20241,112651,0.88819722345733909,6.3336791660491082E-2,15172,2806,784,565,717,197]
["QM7","Hertfordshire and West Essex STP",1722,75354,0.96922183507549364,9.2915214866434379E-3,1416,253,23,7,9,14]
["QMF","East London Health & Care Partnership (STP)",12151,176471,0.86223356102378401,7.5302444243272162E-2,8442,2035,457,330,585,302]
["QMJ","North London Partners in Health & Care (STP)",24429,251852,0.92652175692824101,3.1601784764009988E-2,19155,3479,584,325,447,439]
["QMM","Norfolk and Waveney Health & Care Partnership (STP)",3232,78462,0.96813118811881194,1.4232673267326733E-2,2830,299,41,16,30,16]
["QNC","Staffordshire & Stoke on Trent STP",568,48113,0.9859154929577465,5.2816901408450703E-3,537,23,3,0,3,2]
["QNQ","Frimley Health & Care (STP)",2501,41313,0.97241103558576569,7.5969612155137945E-3,1920,512,43,11,8,7]
["QNX","Sussex Health and Care Partnership STP",3941,67923,0.95635625475767572,1.700076122811469E-2,3325,444,82,35,32,23]
["QOC","Shropshire and Telford and Wrekin STP",4118,33462,0.98615832928606117,5.5852355512384655E-3,3794,267,32,12,11,2]
["QOP","Greater Manchester Health & Social Care Partnership",17835,225456,0.93871600784973364,3.0670030838239416E-2,14492,2250,413,244,303,133]
["QOQ","Humber, Coast and Vale STP",5147,125208,0.94929084903827476,2.273168836215271E-2,4160,726,120,64,53,24]
["QOX","Bath and North East Somerset, Swindon and Wiltshire STP",96,34574,0.94791666666666663,3.125E-2,83,8,2,1,2,0]
["QPM","Northamptonshire STP",2252,57502,0.92584369449378334,3.1527531083481351E-2,1775,310,83,33,38,13]
["QR1","Gloucestershire STP",4630,45709,0.93088552915766742,3.6717062634989202E-2,3633,677,132,94,76,18]
["QRL","Hampshire and the Isle of Wight STP",6331,141140,0.94282103933027961,2.6220186384457431E-2,5125,844,163,71,95,33]
["QRV","North West London Health & Care Partnership (STP)",13463,210378,0.92260268885092478,4.2783926316571345E-2,10331,2090,388,249,327,78]
["QSL","Somerset STP",289,11194,0.97923875432525953,1.7301038062283738E-2,267,16,0,2,3,1]
["QT1","Nottingham and Nottinghamshire Health and Care STP",4891,73482,0.95747290942547536,2.2081373952157025E-2,4200,483,85,50,58,15]
["QT6","Cornwall and the Isles of Scilly Health & Social Care Partnership (STP)",2593,33945,0.96182028538372544,1.5426147319706903E-2,2237,257,51,20,20,8]
["QU9","Buckinghamshire, Oxfordshire and Berkshire West STP",9217,130367,0.933817945101443,3.1355104697840946E-2,7414,1193,270,153,136,51]
["QUA","The Black Country and West Birmingham STP",11427,142034,0.9071497330882996,4.2180799859980744E-2,8701,1665,339,197,285,240]
["QUE","Cambridgeshire and Peterborough STP",11138,95056,0.96112407972706049,1.8585024241335967E-2,9695,1010,207,95,112,19]
["QUY","Bristol, North Somerset and South Gloucestershire STP",5963,74468,0.9456649337581754,2.6161328190508135E-2,4902,737,132,81,75,36]
["QVV","Dorset STP",1580,13568,0.91518987341772151,2.911392405063291E-2,1212,234,47,27,19,41]
["QWE","South West London Health & Care Partnership (STP)",10764,133591,0.92437755481233741,4.0040876997398736E-2,8287,1663,325,186,245,58]
["QWO","West Yorkshire and Harrogate Health & Care Partnership (STP)",9529,190745,0.93346626088781615,3.2847098331409384E-2,7740,1155,236,134,179,85]
["QWU","Coventry and Warwickshire STP",3939,74094,0.91926884996191927,3.6049758822036052E-2,3059,562,114,58,84,62]
["QXU","Surrey Heartlands Health & Care Partnership (STP)",3806,79219,0.9240672622175512,3.9411455596426698E-2,2983,534,116,63,87,23]
["QYG","Cheshire and Merseyside STP",31241,235387,0.93505329534906056,3.1785154124387822E-2,25803,3409,804,442,551,232]
["IS1","Independent Sector Providers",8582,185181,0.982405033791657,9.0887904917268704E-3,7205,1226,67,34,44,6]

{"sheet":"Orgs","index":3,"n_rows":240,"n_cols":21,"rows_kept":240,"cut":false,"hidden":false,"merged":[[7,19,8,19],[7,20,8,20],[7,13,8,13],[7,14,8,14],[7,15,8,15],[7,16,8,16],[7,17,8,17],[7,18,8,18],[4,1,5,2],[6,13,6,20],[7,0,8,0],[7,1,8,1],[7,2,8,2],[7,3,8,3],[7,4,8,4],[7,5,8,5],[7,6,8,6],[7,7,7,12]]}
[]
[]
[]
[]
[null,null,null,null,null,null,null,"  "]
[null,null,null,null,null,null,null,"  "]
[null,null,null,null,null,null,null,null,null,null,null,null,null,"Response Mode"]
["STP Code","Org Code","Org Name","Total Responses","Total Eligible","Percentage Positive","Percentage Negative","Breakdown of Responses",null,null,null,null,null,"Mode SMS","Mode Electronic At Appointment","Mode Electronic After Appointment","Mode Paper At Appointment","Mode Paper After Appointment","Mode Telephone","Mode Online","Mode Other"]
[null,null,null,null,null,null,null,"Very Good","Good","Neither Good nor Poor","Poor","Very Poor","Don't Know"]
[null,null,"England (including Independent Sector Providers)",304963,4536345,0.9302407177264127,3.4623872404193297E-2,243023,40666,8131,4686,5873,2584,188088,7216,2970,36111,6851,35959,26630,{"$f":"SUM('[1]Collection Mode'!O:O)","v":1138}]
[null,null,"England (excluding Independent Sector Providers)",296381,4351164,0.92873024923999847,3.5363265526467624E-2,235818,39440,8064,4652,5829,2578,187702,5200,1565,34118,5705,35959,24994,{"$f":"SUMIF('[1]Collection Mode'!$P:$P,\"<>IS1\",'[1]Collection Mode'!O:O)","v":1138}]
[null,null,"Selection (excluding suppressed data)",{"$f":"SUBTOTAL(9, D13:D10000)","v":304963},{"$f":"SUBTOTAL(9, E13:E10000)","v":4536345},{"$f":"IFERROR((H12+I12)/D12, \"-\")","v":0.91532415407770784},{"$f":"IFERROR((K12+L12)/D12, \"-\")","v":3.3922147932700035E-2},{"$f":"SUBTOTAL(9, H13:H10000)","v":239249},{"$f":"SUBTOTAL(9, I13:I10000)","v":39891},7963,4583,5762,2566,183180,7216,2970,36096,6851,35959,26604,1138]
["QE1","RXL","BLACKPOOL TEACHING HOSPITALS NHS FOUNDATION TRUST",1585,30454,0.97981072555205051,1.0725552050473186E-2,1410,143,14,14,3,1,0,0,0,1308,0,0,277,0]
["QE1","RXR","EAST LANCASHIRE HOSPITALS NHS TRUST",1110,40919,0.91801801801801797,3.063063063063063E-2,843,176,37,19,15,20,863,0,0,150,0,0,97,0]
["QE1","RXN","LANCASHIRE TEACHING HOSPITALS NHS FOUNDATION TRUST",1668,42505,0.89688249400479614,5.5755395683453238E-2,1201,295,71,43,50,8,1626,0,0,30,0,0,12,0]
["QE1","RTX","UNIVERSITY HOSPITALS OF MORECAMBE BAY NHS FOUNDATION TRUST",3201,23477,0.94595438925335829,2.6866604186191814E-2,2649,379,65,50,36,22,2404,0,0,0,0,795,2,0]
["QF7","RFF","BARNSLEY HOSPITAL NHS FOUNDATION TRUST",88,29727,0.98863636363636365,0,69,18,1,0,0,0,0,88,0,0,0,0,0,0]
["QF7","RP5","DONCASTER AND BASSETLAW TEACHING HOSPITALS NHS FOUNDATION TRUST",240,41287,0.98750000000000004,1.2500000000000001E-2,222,15,0,2,1,0,0,0,0,229,0,0,11,0]
["QF7","RCU","SHEFFIELD CHILDREN'S NHS FOUNDATION TRUST",2081,13538,0.8885151369533878,6.0067275348390195E-2,1608,241,70,45,80,37,0,0,0,0,282,1691,108,0]
["QF7","RHQ","SHEFFIELD TEACHING HOSPITALS NHS FOUNDATION TRUST",6371,93123,0.94710406529587188,2.2445455972374823E-2,5358,676,164,70,73,30,4213,0,0,0,0,865,1293,0]
["QF7","RFR","THE ROTHERHAM NHS FOUNDATION TRUST",261,22059,0.97701149425287359,1.9157088122605363E-2,238,17,1,3,2,0,0,0,0,250,0,0,11,0]
["QGH","RWP","WORCESTERSHIRE ACUTE HOSPITALS NHS TRUST",4908,28946,0.91850040749796247,4.3602281988590057E-2,"*","*","*","*","*","*","*","*","*","*","*","*","*","*"]
["QGH","RLQ","WYE VALLEY NHS TRUST",2,14208,"*","*","*","*","*","*","*","*","*","*","*","*","*","*","*","*"]
["QH8","RAJ","MID AND SOUTH ESSEX NHS FOUNDATION TRUST",6399,27987,0.91686200968901388,3.5630567276136893E-2,4900,967,223,112,116,81,4942,0,0,0,0,1453,4,0]
["QHG","RC9","BEDFORDSHIRE HOSPITALS NHS FOUNDATION TRUST",886,29118,0.94582392776523705,1.9187358916478554E-2,634,204,28,4,13,3,0,354,0,95,0,0,437,0]
["QHG","RD8","MILTON KEYNES UNIVERSITY HOSPITAL NHS FOUNDATION TRUST",158,17804,0.98101265822784811,6.3291139240506328E-3,146,9,1,0,1,1,0,0,0,121,0,0,37,0]
["QHL","RQ3","BIRMINGHAM WOMEN'S AND CHILDREN'S NHS FOUNDATION TRUST",40,28072,0.875,0.1,30,5,1,4,0,0,0,0,0,0,0,0,40,0]
["QHL","RRK","UNIVERSITY HOSPITALS BIRMINGHAM NHS FOUNDATION TRUST",853,108757,0.97772567409144195,1.4067995310668231E-2,743,91,4,5,7,3,0,0,0,0,853,0,0,0]
["QHM","RXP","COUNTY DURHAM AND DARLINGTON NHS FOUNDATION TRUST",0,30650,"NA","NA",0,0,0,0,0,0,0,0,0,0,0,0,0,0]
["QHM","RR7","GATESHEAD HEALTH NHS FOUNDATION TRUST",12,12216,1,0,12,0,0,0,0,0,12,0,0,0,0,0,0,0]
["QHM","RNN","NORTH CUMBRIA INTEGRATED CARE NHS FOUNDATION TRUST",227,400,0.97356828193832601,0,208,13,2,0,0,4,4,0,0,157,0,0,66,0]
["QHM","RVW","NORTH TEES AND HARTLEPOOL NHS FOUNDATION TRUST",563,9852,0.95026642984014209,2.664298401420959E-2,461,74,12,7,8,1,489,0,0,74,0,0,0,0]
["QHM","RTF","NORTHUMBRIA HEALTHCARE NHS FOUNDATION TRUST",1106,32614,0.94394213381555159,2.2603978300180832E-2,885,159,31,9,16,6,762,0,0,0,344,0,0,0]
["QHM","RTR","SOUTH TEES HOSPITALS NHS FOUNDATION TRUST",619,41641,0.96930533117932149,1.9386106623586429E-2,532,68,6,6,6,1,592,4,0,0,0,0,23,0]
["QHM","R0B","SOUTH TYNESIDE AND SUNDERLAND NHS FOUNDATION TRUST",46,"NA",0.80434782608695654,0.15217391304347827,36,1,2,5,2,0,0,0,0,0,0,0,46,0]
["QHM","RTD","THE NEWCASTLE UPON TYNE HOSPITALS NHS FOUNDATION TRUST",938,87275,0.96162046908315568,1.4925373134328358E-2,722,180,18,9,5,4,0,0,0,933,0,0,5,0]
["QJ2","RFS","CHESTERFIELD ROYAL HOSPITAL NHS FOUNDATION TRUST",1787,24039,0.92501398992725237,3.8052602126468944E-2,1347,306,56,44,24,10,1200,41,0,472,0,0,74,0]
["QJ2","RTG","UNIVERSITY HOSPITALS OF DERBY AND BURTON NHS FOUNDATION TRUST",3492,49103,0.92955326460481102,3.6941580756013746E-2,2682,564,113,67,62,4,3350,0,0,22,0,0,120,0]
["QJG","RDE","EAST SUFFOLK AND NORTH ESSEX NHS FOUNDATION TRUST",4710,37301,0.93715498938428876,3.1422505307855626E-2,3833,581,104,47,101,44,2745,0,0,176,0,1125,664,0]
["QJG","RGR","WEST SUFFOLK NHS FOUNDATION TRUST",428,23115,0.97429906542056077,7.0093457943925233E-3,352,65,5,2,1,3,0,0,0,346,0,0,82,0]
["QJK","RBZ","NORTHERN DEVON HEALTHCARE NHS TRUST",295,10569,0.95932203389830506,1.6949152542372881E-2,246,37,6,0,5,1,0,0,0,207,0,0,88,0]
["QJK","RH8","ROYAL DEVON AND EXETER NHS FOUNDATION TRUST",0,28467,"NA","NA",0,0,0,0,0,0,0,0,0,0,0,0,0,0]
["QJK","RA9","TORBAY AND SOUTH DEVON NHS FOUNDATION TRUST",0,27551,"NA","NA",0,0,0,0,0,0,0,0,0,0,0,0,0,0]
["QJK","RK9","UNIVERSITY HOSPITALS PLYMOUTH NHS TRUST",119,28119,0.98319327731092432,8.4033613445378148E-3,116,1,1,0,1,0,0,0,0,119,0,0,0,0]
["QJM","RWD","UNITED LINCOLNSHIRE HOSPITALS NHS TRUST",2860,41027,0.91783216783216781,3.5664335664335661E-2,2151,474,105,46,56,28,1217,0,0,0,0,1473,170,0]
["QK1","RWE","UNIVERSITY HOSPITALS OF LEICESTER NHS TRUST",9653,63193,0.94281570496218792,2.6105873821609862E-2,8114,987,256,114,138,44,7871,856,0,914,0,0,12,0]
["QKK","RJ1","GUY'S AND ST THOMAS' NHS FOUNDATION TRUST",2873,77764,0.91890010442046643,4.142011834319527E-2,2173,467,102,56,63,12,1769,38,0,488,0,88,490,0]
["QKK","RJZ","KING'S COLLEGE HOSPITAL NHS FOUNDATION TRUST",4258,75491,0.88844527947393137,6.411460779708783E-2,2933,850,188,120,153,14,4061,87,0,0,51,0,59,0]
["QKK","RJ2","LEWISHAM AND GREENWICH NHS TRUST",3510,46078,0.9116809116809117,4.8717948717948718E-2,2535,665,133,81,90,6,2686,0,0,643,0,0,181,0]
["QKS","RN7","DARTFORD AND GRAVESHAM NHS TRUST",932,15829,0.97424892703862664,1.7167381974248927E-2,780,128,7,4,12,1,0,714,0,68,0,0,150,0]
["QKS","RVV","EAST KENT HOSPITALS UNIVERSITY NHS FOUNDATION TRUST",9326,36069,0.9385588676817499,3.3240403173922364E-2,7588,1165,263,162,148,0,9326,0,0,0,0,0,0,0]
["QKS","RWF","MAIDSTONE AND TUNBRIDGE WELLS NHS TRUST",7249,36262,0.81652641743688781,0.10704924817216167,4877,1042,401,329,447,153,0,0,0,138,0,6717,394,0]
["QKS","RPA","MEDWAY NHS FOUNDATION TRUST",2734,24491,0.87710314557425018,6.5837600585223116E-2,1927,471,113,70,110,43,2064,0,0,0,0,669,1,0]
["QM7","RWH","EAST AND NORTH HERTFORDSHIRE NHS TRUST",638,31801,0.94357366771159878,2.037617554858934E-2,485,117,17,6,7,6,0,32,0,472,0,125,9,0]
["QM7","RQW","THE PRINCESS ALEXANDRA HOSPITAL NHS TRUST",595,19035,0.97647058823529409,3.3613445378151263E-3,478,103,5,0,2,7,0,0,0,0,0,0,0,595]
["QM7","RWG","WEST HERTFORDSHIRE HOSPITALS NHS TRUST",489,24518,0.99386503067484666,2.0449897750511249E-3,453,33,1,1,0,1,0,489,0,0,0,0,0,0]
["QMF","RF4","BARKING, HAVERING AND REDBRIDGE UNIVERSITY HOSPITALS NHS TRUST",1255,38451,0.91713147410358564,5.0996015936254982E-2,1016,135,11,3,61,29,0,0,218,0,1012,0,25,0]
["QMF","R1H","BARTS HEALTH NHS TRUST",10622,110639,0.85426473357183208,7.9740161928073802E-2,7239,1835,432,326,521,269,9772,0,0,839,0,0,11,0]
["QMF","RQX","HOMERTON UNIVERSITY HOSPITAL NHS FOUNDATION TRUST",274,27381,0.91970802919708028,1.4598540145985401E-2,187,65,14,1,3,4,0,165,0,87,0,0,22,0]
["QMJ","RP4","GREAT ORMOND STREET HOSPITAL FOR CHILDREN NHS FOUNDATION TRUST",304,15975,0.9375,3.2894736842105261E-2,261,24,6,5,5,3,0,0,0,251,0,0,53,0]
["QMJ","RP6","MOORFIELDS EYE HOSPITAL NHS FOUNDATION TRUST",16142,41996,0.93433279643166889,2.2549869904596703E-2,12754,2328,341,186,178,355,16142,0,0,0,0,0,0,0]
["QMJ","RAP","NORTH MIDDLESEX UNIVERSITY HOSPITAL NHS TRUST",1693,29118,0.88659184878913166,6.9698759598346136E-2,1182,319,62,38,80,12,1327,366,0,0,0,0,0,0]
["QMJ","RAL","ROYAL FREE LONDON NHS FOUNDATION TRUST",574,77510,0.83972125435540068,0.11672473867595819,393,89,16,20,47,9,0,566,0,0,0,0,8,0]
["QMJ","RRV","UNIVERSITY COLLEGE LONDON HOSPITALS NHS FOUNDATION TRUST",5676,69108,0.92406624383368574,3.7526427061310784E-2,4529,716,159,76,137,59,4121,0,0,0,0,1555,0,0]
["QMJ","RKE","WHITTINGTON HEALTH NHS TRUST",40,18145,0.97499999999999998,0,36,3,0,0,0,1,0,0,0,40,0,0,0,0]
["QMM","RGP","JAMES PAGET UNIVERSITY HOSPITALS NHS FOUNDATION TRUST",1369,17651,0.98027757487216949,6.5741417092768442E-3,1245,97,12,2,7,6,0,0,0,1369,0,0,0,0]
["QMM","RM1","NORFOLK AND NORWICH UNIVERSITY HOSPITALS NHS FOUNDATION TRUST",714,40887,0.96918767507002801,1.4005602240896359E-2,610,82,8,5,5,4,0,0,0,398,0,0,316,0]
["QMM","RCX","THE QUEEN ELIZABETH HOSPITAL, KING'S LYNN, NHS FOUNDATION TRUST",1149,19924,0.95300261096605743,2.3498694516971279E-2,975,120,21,9,18,6,0,0,0,384,0,0,765,0]
["QNC","RRE","MIDLANDS PARTNERSHIP NHS FOUNDATION TRUST",90,2115,1,0,87,3,0,0,0,0,0,0,0,0,0,0,90,0]
["QNC","RJE","UNIVERSITY HOSPITALS OF NORTH MIDLANDS NHS TRUST",478,45998,0.98326359832635979,6.2761506276150627E-3,450,20,3,0,3,2,0,0,0,0,478,0,0,0]
["QNQ","RDU","FRIMLEY HEALTH NHS FOUNDATION TRUST",2501,41313,0.97241103558576569,7.5969612155137945E-3,1920,512,43,11,8,7,160,123,0,2218,0,0,0,0]
["QNX","RXC","EAST SUSSEX HEALTHCARE NHS TRUST",305,24612,0.9868852459016394,6.5573770491803279E-3,283,18,1,0,2,1,0,0,0,305,0,0,0,0]
["QNX","RPC","QUEEN VICTORIA HOSPITAL NHS FOUNDATION TRUST",1579,15001,0.94680177327422421,1.6466117796073463E-2,1290,205,48,21,5,10,523,0,0,206,0,850,0,0]
["QNX","RYR","UNIVERSITY HOSPITALS SUSSEX NHS FOUNDATION TRUST",2057,28310,0.95916383082158485,1.8959649975692758E-2,1752,221,33,14,25,12,950,18,0,883,0,184,22,0]
["QOC","RL1","THE ROBERT JONES AND AGNES HUNT ORTHOPAEDIC HOSPITAL NHS FOUNDATION TRUST",920,6671,0.96195652173913049,1.9565217391304349E-2,812,73,16,9,9,1,917,3,0,0,0,0,0,0]
["QOC","RXW","THE SHREWSBURY AND TELFORD HOSPITAL NHS TRUST",3198,26791,0.99312070043777356,1.5634771732332708E-3,2982,194,16,3,2,1,0,0,0,2778,0,0,420,0]
["QOP","RMC","BOLTON NHS FOUNDATION TRUST",2282,20678,0.92068361086765993,4.6450482033304118E-2,1852,249,52,47,59,23,2057,0,225,0,0,0,0,0]
["QOP","R0A","MANCHESTER UNIVERSITY NHS FOUNDATION TRUST",10392,109713,0.94871054657428788,2.3768283294842187E-2,8419,1440,212,105,142,74,2390,0,756,5310,0,749,1187,0]
["QOP","RWJ","STOCKPORT NHS FOUNDATION TRUST",922,23554,0.90347071583514105,4.2299349240780909E-2,694,139,42,20,19,8,684,0,0,0,0,238,0,0]
["QOP","RMP","TAMESIDE AND GLOSSOP INTEGRATED CARE NHS FOUNDATION TRUST",1467,14683,0.91206543967280163,6.0668029993183367E-2,1193,145,39,35,54,1,1424,43,0,0,0,0,0,0]
["QOP","RBV","THE CHRISTIE NHS FOUNDATION TRUST",1977,29631,0.94183105715730908,2.0738492665655032E-2,1690,172,51,25,16,23,1977,0,0,0,0,0,0,0]
["QOP","RRF","WRIGHTINGTON, WIGAN AND LEIGH NHS FOUNDATION TRUST",795,27197,0.94213836477987423,3.1446540880503145E-2,644,105,17,12,13,4,552,0,0,9,0,234,0,0]
["QOQ","RCD","HARROGATE AND DISTRICT NHS FOUNDATION TRUST",2575,15172,0.94834951456310679,2.0194174757281552E-2,1997,445,70,27,25,11,0,0,0,0,0,2575,0,0]
["QOQ","RWA","HULL UNIVERSITY TEACHING HOSPITALS NHS TRUST",509,49363,0.99017681728880158,0,471,33,2,0,0,3,0,0,0,509,0,0,0,0]
["QOQ","RJL","NORTHERN LINCOLNSHIRE AND GOOLE NHS FOUNDATION TRUST",34,29908,0.94117647058823528,5.8823529411764705E-2,30,2,0,0,2,0,0,1,0,30,0,0,3,0]
["QOQ","RCB","YORK AND SCARBOROUGH TEACHING HOSPITALS NHS FOUNDATION TRUST",2029,30765,0.94036471168063085,3.1049778215869888E-2,1662,246,48,37,26,10,1764,0,265,0,0,0,0,0]
["QOX","RN3","GREAT WESTERN HOSPITALS NHS FOUNDATION TRUST",8,21113,0.5,0.375,4,0,1,1,2,0,0,0,0,0,0,0,8,0]
["QOX","RNZ","SALISBURY NHS FOUNDATION TRUST",88,13461,0.98863636363636365,0,79,8,1,0,0,0,0,0,0,0,88,0,0,0]
["QPM","RNQ","KETTERING GENERAL HOSPITAL NHS FOUNDATION TRUST",27,23674,0.55555555555555558,0.37037037037037035,14,1,2,3,7,0,0,0,0,0,0,0,27,0]
["QPM","RNS","NORTHAMPTON GENERAL HOSPITAL NHS TRUST",2225,33828,0.93033707865168536,2.7415730337078652E-2,1761,309,81,30,31,13,1320,0,0,0,0,454,451,0]
["QR1","RTE","GLOUCESTERSHIRE HOSPITALS NHS FOUNDATION TRUST",4630,45709,0.93088552915766742,3.6717062634989202E-2,3633,677,132,94,76,18,4070,0,0,0,0,558,2,0]
["QRL","RN5","HAMPSHIRE HOSPITALS NHS FOUNDATION TRUST",1341,31742,0.94034302759134969,2.4608501118568233E-2,1097,164,35,13,20,12,401,0,0,603,0,304,33,0]
["QRL","R1F","ISLE OF WIGHT NHS TRUST",261,11546,0.98084291187739459,3.8314176245210726E-3,239,17,3,0,1,1,0,0,0,261,0,0,0,0]
["QRL","RHU","PORTSMOUTH HOSPITALS UNIVERSITY NATIONAL HEALTH SERVICE TRUST",3737,47392,0.93470698421193465,3.3181696548033185E-2,3066,427,103,55,69,17,3737,0,0,0,0,0,0,0]
["QRL","RHM","UNIVERSITY HOSPITAL SOUTHAMPTON NHS FOUNDATION TRUST",992,50460,0.96673387096774188,8.0645161290322578E-3,723,236,22,3,5,3,0,0,0,804,0,0,188,0]
["QRV","RQM","CHELSEA AND WESTMINSTER HOSPITAL NHS FOUNDATION TRUST",1095,50804,0.98812785388127855,6.392694063926941E-3,955,127,6,0,7,0,0,0,0,0,0,0,1095,0]
["QRV","RYJ","IMPERIAL COLLEGE HEALTHCARE NHS TRUST",5917,77893,0.91566672300152108,4.9011323305729257E-2,4580,838,192,130,160,17,0,303,0,243,0,0,5371,0]
["QRV","R1K","LONDON NORTH WEST UNIVERSITY HEALTHCARE NHS TRUST",1117,39878,0.90331244404655331,5.1924798567591766E-2,863,146,13,5,53,37,0,1,0,1087,0,0,29,0]
["QRV","RAN","ROYAL NATIONAL ORTHOPAEDIC HOSPITAL NHS TRUST",1139,3309,0.92976294995610187,3.8630377524143986E-2,904,155,36,22,22,0,0,176,0,0,0,0,963,0]
["QRV","RAS","THE HILLINGDON HOSPITALS NHS FOUNDATION TRUST",3796,21219,0.9117492096944152,4.6364594309799792E-2,2650,811,139,92,84,20,0,6,0,1029,0,0,2761,0]
["QRV","RPY","THE ROYAL MARSDEN NHS FOUNDATION TRUST",399,17275,0.98245614035087714,2.5062656641604009E-3,379,13,2,0,1,4,0,0,0,399,0,0,0,0]
["QSL","RH5","SOMERSET NHS FOUNDATION TRUST",98,641,0.96938775510204078,2.0408163265306121E-2,90,5,0,2,0,1,0,0,0,0,98,0,0,0]
["QSL","RA4","YEOVIL DISTRICT HOSPITAL NHS FOUNDATION TRUST",191,10553,0.98429319371727753,1.5706806282722512E-2,177,11,0,0,3,0,0,18,0,26,146,0,0,1]
["QT1","RX1","NOTTINGHAM UNIVERSITY HOSPITALS NHS TRUST",2461,44108,0.98130841121495327,7.7204388459975615E-3,2218,197,16,5,14,11,0,3,0,2401,0,0,57,0]
["QT1","RK5","SHERWOOD FOREST HOSPITALS NHS FOUNDATION TRUST",2430,29374,0.93333333333333335,3.6625514403292182E-2,1982,286,69,45,44,4,2322,0,0,108,0,0,0,0]
["QT6","REF","ROYAL CORNWALL HOSPITALS NHS TRUST",2593,33945,0.96182028538372544,1.5426147319706903E-2,2237,257,51,20,20,8,470,344,0,0,0,0,1779,0]
["QU9","RXQ","BUCKINGHAMSHIRE HEALTHCARE NHS TRUST",3366,24627,0.90849673202614378,4.2186571598336303E-2,2490,568,133,73,69,33,2648,0,0,0,0,718,0,0]
["QU9","RTH","OXFORD UNIVERSITY HOSPITALS NHS FOUNDATION TRUST",4999,62596,0.94138827765553112,2.9205841168233646E-2,4149,557,130,79,67,17,4906,0,0,0,55,0,38,0]
["QU9","RHW","ROYAL BERKSHIRE NHS FOUNDATION TRUST",852,43144,0.98943661971830987,1.1737089201877935E-3,775,68,7,1,0,1,1,0,0,851,0,0,0,0]
["QUA","RXK","SANDWELL AND WEST BIRMINGHAM HOSPITALS NHS TRUST",6364,44473,0.90776241357636711,4.8397234443746072E-2,4848,929,199,111,197,80,4103,0,0,1395,0,866,0,0]
["QUA","RNA","THE DUDLEY GROUP NHS FOUNDATION TRUST",1062,32251,0.80979284369114879,3.954802259887006E-2,742,118,32,23,19,128,750,0,0,0,298,0,14,0]
["QUA","RL4","THE ROYAL WOLVERHAMPTON NHS TRUST",2038,48262,0.93915603532875369,2.7968596663395486E-2,1582,332,51,31,26,16,832,0,0,0,0,1206,0,0]
["QUA","RBK","WALSALL HEALTHCARE NHS TRUST",1963,17048,0.92460519612837488,3.8206826286296486E-2,1529,286,57,32,43,16,1544,51,0,0,0,368,0,0]
["QUE","RGT","CAMBRIDGE UNIVERSITY HOSPITALS NHS FOUNDATION TRUST",8688,44388,0.95695211786372003,2.094843462246777E-2,7538,776,181,85,97,11,8659,0,0,21,0,0,8,0]
["QUE","RGN","NORTH WEST ANGLIA NHS FOUNDATION TRUST",1619,43360,0.97838171710932675,8.0296479308214954E-3,1416,168,16,1,12,6,0,0,0,0,1557,0,62,0]
["QUE","RGM","ROYAL PAPWORTH HOSPITAL NHS FOUNDATION TRUST",831,7308,0.97111913357400725,1.444043321299639E-2,741,66,10,9,3,2,0,0,0,0,0,0,831,0]
["QUY","RVJ","NORTH BRISTOL NHS TRUST",3889,29480,0.9465158138338905,2.5970686551812807E-2,3203,478,88,58,43,19,2229,0,0,0,0,1660,0,0]
["QUY","RA7","UNIVERSITY HOSPITALS BRISTOL AND WESTON NHS FOUNDATION TRUST",2074,44988,0.94406943105110896,2.6518804243008679E-2,1699,259,44,23,32,17,1772,0,0,146,156,0,0,0]
["QVV","RBD","DORSET COUNTY HOSPITAL NHS FOUNDATION TRUST",1395,13568,0.91684587813620066,2.7956989247311829E-2,1075,204,42,23,16,35,1371,0,0,0,0,24,0,0]
["QVV","R0D","UNIVERSITY HOSPITALS DORSET NHS FOUNDATION TRUST",185,"NA",0.9027027027027027,3.783783783783784E-2,137,30,5,4,3,6,142,0,0,0,0,0,43,0]
["QWE","RJ6","CROYDON HEALTH SERVICES NHS TRUST",3585,29462,0.93947001394700136,3.0125523012552301E-2,2871,497,91,46,62,18,3585,0,0,0,0,0,0,0]
["QWE","RVR","EPSOM AND ST HELIER UNIVERSITY HOSPITALS NHS TRUST",1990,26135,0.9261306532663317,3.4170854271356785E-2,1530,313,64,28,40,15,1240,57,0,213,0,375,105,0]
["QWE","RAX","KINGSTON HOSPITAL NHS FOUNDATION TRUST",3238,23593,0.91630636195182213,4.4163063619518224E-2,2481,486,112,69,74,16,2780,3,0,0,0,454,1,0]
["QWE","RJ7","ST GEORGE'S UNIVERSITY HOSPITALS NHS FOUNDATION TRUST",1951,54401,0.90825217837006667,5.7406458226550487E-2,1405,367,58,43,69,9,0,140,0,99,0,0,1712,0]
["QWO","RCF","AIREDALE NHS FOUNDATION TRUST",1655,12503,0.95105740181268883,2.5377643504531724E-2,1423,151,28,19,23,11,1173,0,0,0,0,0,482,0]
["QWO","RAE","BRADFORD TEACHING HOSPITALS NHS FOUNDATION TRUST",2324,27867,0.91394148020654042,4.8192771084337352E-2,1835,289,69,49,63,19,2324,0,0,0,0,0,0,0]
["QWO","RWY","CALDERDALE AND HUDDERSFIELD NHS FOUNDATION TRUST",2511,28861,0.91875746714456397,3.7435284747112704E-2,1970,337,79,35,59,31,2431,0,0,0,0,0,80,0]
["QWO","RR8","LEEDS TEACHING HOSPITALS NHS TRUST",1989,83212,0.93514328808446456,2.8657616892911009E-2,1584,276,48,30,27,24,1028,0,101,0,247,586,27,0]
["QWO","RXF","MID YORKSHIRE HOSPITALS NHS TRUST",1050,38302,0.98095238095238091,7.619047619047619E-3,928,102,12,1,7,0,0,0,0,1019,0,0,31,0]
["QWU","RLT","GEORGE ELIOT HOSPITAL NHS TRUST",2193,16415,0.91883264933880526,3.4655722754217966E-2,1663,352,52,31,45,50,2155,0,0,0,0,38,0,0]
["QWU","RJC","SOUTH WARWICKSHIRE NHS FOUNDATION TRUST",124,15621,0.9838709677419355,1.6129032258064516E-2,120,2,0,0,2,0,0,0,0,97,0,0,27,0]
["QWU","RKB","UNIVERSITY HOSPITALS COVENTRY AND WARWICKSHIRE NHS TRUST",1622,42058,0.9149198520345253,3.9457459926017263E-2,1276,208,62,27,37,12,1409,0,0,0,0,213,0,0]
["QXU","RTK","ASHFORD AND ST PETER'S HOSPITALS NHS FOUNDATION TRUST",1037,33764,0.90838958534233361,4.4358727097396335E-2,783,159,30,17,29,19,684,0,0,0,0,0,353,0]
["QXU","RA2","ROYAL SURREY COUNTY HOSPITAL NHS FOUNDATION TRUST",1552,22866,0.93234536082474229,3.608247422680412E-2,1251,196,48,26,30,1,1512,0,0,25,3,12,0,0]
["QXU","RTP","SURREY AND SUSSEX HEALTHCARE NHS TRUST",1217,22589,0.92686935086277733,3.944124897288414E-2,949,179,38,20,28,3,986,0,0,134,0,39,58,0]
["QYG","RBS","ALDER HEY CHILDREN'S NHS FOUNDATION TRUST",975,14548,0.95487179487179485,2.9743589743589743E-2,802,129,14,13,16,1,637,110,0,0,0,0,228,0]
["QYG","RJR","COUNTESS OF CHESTER HOSPITAL NHS FOUNDATION TRUST",1335,22778,0.94157303370786516,2.9213483146067417E-2,1078,179,35,14,25,4,1177,0,0,0,0,158,0,0]
["QYG","RJN","EAST CHESHIRE NHS TRUST",1877,9606,0.95258391049547153,2.2908897176345231E-2,1585,203,38,22,21,8,1273,0,0,18,0,586,0,0]
["QYG","RBQ","LIVERPOOL HEART AND CHEST HOSPITAL NHS FOUNDATION TRUST",0,4186,"NA","NA",0,0,0,0,0,0,0,0,0,0,0,0,0,0]
["QYG","REM","LIVERPOOL UNIVERSITY HOSPITALS NHS FOUNDATION TRUST",8918,22860,0.93328100470957609,3.3415564027808924E-2,7375,948,223,102,196,74,6963,0,0,0,0,1955,0,0]
["QYG","REP","LIVERPOOL WOMEN'S NHS FOUNDATION TRUST",542,10791,0.91881918819188191,4.0590405904059039E-2,436,62,13,5,17,9,0,0,0,0,0,0,0,542]
["QYG","RBT","MID CHESHIRE HOSPITALS NHS FOUNDATION TRUST",2334,19971,0.92630676949443014,3.5132819194515851E-2,1863,299,74,42,40,16,1699,0,0,0,37,598,0,0]
["QYG","RVY","SOUTHPORT AND ORMSKIRK HOSPITAL NHS TRUST",2488,16710,0.93850482315112538,2.4517684887459808E-2,2026,309,82,36,25,10,1896,0,0,0,0,590,2,0]
["QYG","RBN","ST HELENS AND KNOWSLEY TEACHING HOSPITALS NHS TRUST",4594,31668,0.93273835437527208,3.2651284283848496E-2,3875,410,130,77,73,29,3813,0,0,8,0,704,69,0]
["QYG","REN","THE CLATTERBRIDGE CANCER CENTRE NHS FOUNDATION TRUST",1257,21976,0.96181384248210022,2.1479713603818614E-2,1114,95,16,19,8,5,1257,0,0,0,0,0,0,0]
["QYG","RET","THE WALTON CENTRE NHS FOUNDATION TRUST",170,9230,0.88823529411764701,5.2941176470588235E-2,120,31,3,3,6,7,0,0,0,0,0,0,170,0]
["QYG","RWW","WARRINGTON AND HALTON TEACHING HOSPITALS NHS FOUNDATION TRUST",2839,24822,0.92426910884114122,3.3462486791123638E-2,2268,356,79,45,50,41,1582,0,0,103,0,1152,2,0]
["QYG","RBL","WIRRAL UNIVERSITY TEACHING HOSPITAL NHS FOUNDATION TRUST",3912,26241,0.93277096114519431,3.5276073619631899E-2,3261,388,97,64,74,28,2957,0,0,0,0,955,0,0]
["IS1","NYW17","ASPEN HEALTHCARE - MIDLAND EYE",62,267,1,0,60,2,0,0,0,0,0,0,0,62,0,0,0,0]
["IS1","NWF01","BENENDEN HOSPITAL",4,"NA","*","*","*","*","*","*","*","*","*","*","*","*","*","*","*","*"]
["IS1","NT402","BMI - BATH CLINIC",16,599,1,0,15,1,0,0,0,0,0,0,0,16,0,0,0,0]
["IS1","NT405","BMI - BISHOPS WOOD",30,841,1,0,30,0,0,0,0,0,0,0,0,30,0,0,0,0]
["IS1","NT409","BMI - CHELSFIELD PARK HOSPITAL",0,748,"NA","NA",0,0,0,0,0,0,0,0,0,0,0,0,0,0]
["IS1","NT417","BMI - GORING HALL HOSPITAL",11,1339,1,0,11,0,0,0,0,0,0,0,0,11,0,0,0,0]
["IS1","NT416","BMI - HENDON HOSPITAL",0,1241,"NA","NA",0,0,0,0,0,0,0,0,0,0,0,0,0,0]
["IS1","NT433","BMI - SARUM ROAD HOSPITAL",0,373,"NA","NA",0,0,0,0,0,0,0,0,0,0,0,0,0,0]
["IS1","NT436","BMI - SHIRLEY OAKS HOSPITAL",20,1849,1,0,18,2,0,0,0,0,0,0,0,20,0,0,0,0]
["IS1","NT401","BMI - THE ALEXANDRA HOSPITAL",31,2894,1,0,29,2,0,0,0,0,0,0,0,31,0,0,0,0]
["IS1","NT403","BMI - THE BEARDWOOD HOSPITAL",4,2371,"*","*","*","*","*","*","*","*","*","*","*","*","*","*","*","*"]
["IS1","NT404","BMI - THE BEAUMONT HOSPITAL",113,2599,0.98230088495575218,0,104,7,2,0,0,0,0,0,0,113,0,0,0,0]
["IS1","NT406","BMI - THE BLACKHEATH HOSPITAL",1,1079,"*","*","*","*","*","*","*","*","*","*","*","*","*","*","*","*"]
["IS1","NT408","BMI - THE CHAUCER HOSPITAL",0,844,"NA","NA",0,0,0,0,0,0,0,0,0,0,0,0,0,0]
["IS1","NT410","BMI - THE CHILTERN HOSPITAL",5,501,1,0,5,0,0,0,0,0,0,0,0,5,0,0,0,0]
["IS1","NT411","BMI - THE CLEMENTINE CHURCHILL HOSPITAL",31,1945,1,0,27,4,0,0,0,0,0,0,0,31,0,0,0,0]
["IS1","NT412","BMI - THE DROITWICH SPA HOSPITAL",16,1544,0.875,0.125,14,0,0,0,2,0,0,0,0,16,0,0,0,0]
["IS1","NT418","BMI - THE HAMPSHIRE CLINIC",0,1289,"NA","NA",0,0,0,0,0,0,0,0,0,0,0,0,0,0]
["IS1","NT419","BMI - THE HARBOUR HOSPITAL",12,160,1,0,11,1,0,0,0,0,0,0,0,12,0,0,0,0]
["IS1","NT420","BMI - THE HIGHFIELD HOSPITAL",55,1332,1,0,54,1,0,0,0,0,0,0,0,55,0,0,0,0]
["IS1","NT421","BMI - THE KINGS OAK HOSPITAL",2,988,"*","*","*","*","*","*","*","*","*","*","*","*","*","*","*","*"]
["IS1","NT422","BMI - THE LONDON INDEPENDENT HOSPITAL",312,2814,0.99038461538461542,9.6153846153846159E-3,265,44,0,1,2,0,0,0,0,312,0,0,0,0]
["IS1","NT423","BMI - THE MANOR HOSPITAL",0,486,"NA","NA",0,0,0,0,0,0,0,0,0,0,0,0,0,0]
["IS1","NT424","BMI - THE MERIDEN HOSPITAL",127,1731,0.99212598425196852,0,121,5,1,0,0,0,0,0,0,127,0,0,0,0]
["IS1","NT427","BMI - THE PARK HOSPITAL",171,1044,1,0,167,4,0,0,0,0,0,0,0,171,0,0,0,0]
["IS1","NT428","BMI - THE PRINCESS MARGARET HOSPITAL",5,463,1,0,5,0,0,0,0,0,0,0,0,5,0,0,0,0]
["IS1","NT429","BMI - THE PRIORY HOSPITAL",0,997,"NA","NA",0,0,0,0,0,0,0,0,0,0,0,0,0,0]
["IS1","NT430","BMI - THE RIDGEWAY HOSPITAL",15,1028,1,0,15,0,0,0,0,0,0,0,0,15,0,0,0,0]
["IS1","NT431","BMI - THE RUNNYMEDE HOSPITAL",4,157,"*","*","*","*","*","*","*","*","*","*","*","*","*","*","*","*"]
["IS1","NT432","BMI - THE SANDRINGHAM HOSPITAL",0,707,"NA","NA",0,0,0,0,0,0,0,0,0,0,0,0,0,0]
["IS1","NT434","BMI - THE SAXON CLINIC",8,520,1,0,5,3,0,0,0,0,0,0,0,8,0,0,0,0]
["IS1","NT435","BMI - THE SHELBURNE HOSPITAL",0,77,"NA","NA",0,0,0,0,0,0,0,0,0,0,0,0,0,0]
["IS1","NT437","BMI - THE SLOANE HOSPITAL",0,495,"NA","NA",0,0,0,0,0,0,0,0,0,0,0,0,0,0]
["IS1","NT443","BMI - THE WINTERBOURNE HOSPITAL",0,478,"NA","NA",0,0,0,0,0,0,0,0,0,0,0,0,0,0]
["IS1","NT440","BMI - THORNBURY HOSPITAL",256,615,0.98046875,0,207,44,5,0,0,0,0,0,0,256,0,0,0,0]
["IS1","NT441","BMI - THREE SHIRES HOSPITAL",0,1982,"NA","NA",0,0,0,0,0,0,0,0,0,0,0,0,0,0]
["IS1","NT497","BMI GISBURNE PARK HOSPITAL",0,1277,"NA","NA",0,0,0,0,0,0,0,0,0,0,0,0,0,0]
["IS1","NT455","BMI MOUNT ALVERNIA HOSPITAL",25,1448,1,0,21,4,0,0,0,0,0,0,0,25,0,0,0,0]
["IS1","NT490","BMI SOUTHEND PRIVATE HOSPITAL",0,433,"NA","NA",0,0,0,0,0,0,0,0,0,0,0,0,0,0]
["IS1","NT446","BMI ST EDMUNDS HOSPITAL",3,370,"*","*","*","*","*","*","*","*","*","*","*","*","*","*","*","*"]
["IS1","NT451","BMI THE CAVELL HOSPITAL",51,934,0.96078431372549022,3.9215686274509803E-2,48,1,0,0,2,0,0,0,0,51,0,0,0,0]
["IS1","NT447","BMI THE DUCHY HOSPITAL",1,478,"*","*","*","*","*","*","*","*","*","*","*","*","*","*","*","*"]
["IS1","NT445","BMI THE EDGBASTON HOSPITAL",5,1529,1,0,5,0,0,0,0,0,0,0,0,5,0,0,0,0]
["IS1","NT448","BMI THE HUDDERSFIELD HOSPITAL",29,1620,1,0,28,1,0,0,0,0,0,0,0,29,0,0,0,0]
["IS1","NT449","BMI THE LANCASTER HOSPITAL",30,541,1,0,28,2,0,0,0,0,0,0,0,30,0,0,0,0]
["IS1","NT450","BMI THE LINCOLN HOSPITAL",26,732,0.96153846153846156,3.8461538461538464E-2,24,1,0,0,1,0,0,0,0,26,0,0,0,0]
["IS1","NT457","BMI WOODLANDS HOSPITAL",332,2499,1,0,299,33,0,0,0,0,0,0,0,332,0,0,0,0]
["IS1","NV302","CIRCLE BATH HOSPITAL",37,1710,1,0,36,1,0,0,0,0,0,0,0,37,0,0,0,0]
["IS1","NV323","CIRCLE READING HOSPITAL",68,1809,0.97058823529411764,1.4705882352941176E-2,61,5,0,0,1,1,0,0,0,68,0,0,0,0]
["IS1","NNE","DORKING HEALTHCARE LIMITED (DHC)",12,2078,0.83333333333333337,0,9,1,2,0,0,0,0,0,0,0,6,0,6,0]
["IS1","ACM","EYE CARE MEDICAL LTD",8,"NA",1,0,8,0,0,0,0,0,0,0,0,0,8,0,0,0]
["IS1","NVG01","FAIRFIELD HOSPITAL",45,1777,1,0,42,3,0,0,0,0,0,0,0,45,0,0,0,0]
["IS1","NXM","HORDER HEALTHCARE",34,411,0.97058823529411764,2.9411764705882353E-2,30,3,0,1,0,0,0,0,0,34,0,0,0,0]
["IS1","NV1","INHEALTH LIMITED",926,2933,0.94600431965442766,2.6997840172786176E-2,696,180,23,9,16,2,0,0,0,0,0,0,926,0]
["IS1","NCR","ISIGHT",21,476,0.95238095238095233,0,20,0,1,0,0,0,0,0,0,0,21,0,0,0]
["IS1","ADP","KIMS HOSPITAL",74,2845,1,0,73,1,0,0,0,0,0,0,0,0,49,0,25,0]
["IS1","ACG20","NEWMEDICA - BRISTOL - LITFIELD HOUSE",7,"NA",1,0,7,0,0,0,0,0,0,0,0,0,0,0,7,0]
["IS1","Q1S8W","NEWMEDICA - BURY ST EDMUNDS",0,"NA","NA","NA",0,0,0,0,0,0,0,0,0,0,0,0,0,0]
["IS1","ACG36","NEWMEDICA - EXETER - GLEN HOUSE",2,"NA","*","*","*","*","*","*","*","*","*","*","*","*","*","*","*","*"]
["IS1","ACG41","NEWMEDICA - FROME",0,"NA","NA","NA",0,0,0,0,0,0,0,0,0,0,0,0,0,0]
["IS1","L0D9W","NEWMEDICA - GLOUCESTER (BRIGHOUSE COURT)",8,"NA",1,0,8,0,0,0,0,0,0,0,0,0,0,0,8,0]
["IS1","ACG37","NEWMEDICA - IPSWICH",7,"NA",1,0,"*","*","*","*","*","*","*","*","*","*","*","*","*","*"]
["IS1","ACG38","NEWMEDICA - LANGFORD",1,"NA","*","*","*","*","*","*","*","*","*","*","*","*","*","*","*","*"]
["IS1","ACG39","NEWMEDICA - SWINDON",2,"NA","*","*","*","*","*","*","*","*","*","*","*","*","*","*","*","*"]
["IS1","ACG24","NEWMEDICA - TEESSIDE - NORTH ORMESBY",0,"NA","NA","NA",0,0,0,0,0,0,0,0,0,0,0,0,0,0]
["IS1","ACG40","NEWMEDICA - WAKEFIELD",0,"NA","NA","NA",0,0,0,0,0,0,0,0,0,0,0,0,0,0]
["IS1","ACG35","NEWMEDICA - WINTERTON",0,"NA","NA","NA",0,0,0,0,0,0,0,0,0,0,0,0,0,0]
["IS1","ACG30","NEWMEDICA - WORKSOP - DUKERIES",1,"NA","*","*","*","*","*","*","*","*","*","*","*","*","*","*","*","*"]
["IS1","ACG13","NEWMEDICA COMMUNITY OPHTHALMOLOGY - GLOUCESTERSHIRE - GLOUCESTER (ASPEN CENTRE) (ACG13)",5,"NA",1,0,5,0,0,0,0,0,0,0,0,0,0,0,5,0]
["IS1","ACG23","NEWMEDICA COMMUNITY OPHTHALMOLOGY - IPSWICH - ST HELEN'S HEALTHCARE",0,"NA","NA","NA",0,0,0,0,0,0,0,0,0,0,0,0,0,0]
["IS1","ACG19","NEWMEDICA COMMUNITY OPHTHALMOLOGY - LEEDS",11,"NA",0.90909090909090906,0,10,0,1,0,0,0,0,0,0,0,5,0,6,0]
["IS1","ACG07","NEWMEDICA COMMUNITY OPHTHALMOLOGY - LEICESTERSHIRE - LEICESTER (STONEYGATE EYE HOSPITAL)",0,"NA","NA","NA",0,0,0,0,0,0,0,0,0,0,0,0,0,0]
["IS1","ACG09","NEWMEDICA COMMUNITY OPHTHALMOLOGY - NORTH DERBYSHIRE - BARLBOROUGH TREATMENT CENTRE",1,"NA","*","*","*","*","*","*","*","*","*","*","*","*","*","*","*","*"]
["IS1","ACG12","NEWMEDICA COMMUNITY OPHTHALMOLOGY - NORTH EAST LINCOLNSHIRE - GRIMSBY",4,"NA","*","*","*","*","*","*","*","*","*","*","*","*","*","*","*","*"]
["IS1","ACG08","NEWMEDICA OPHTHALMOLOGY - NUNEATON - CAMP HILL - GP LED HEALTH CENTRE",2,"NA","*","*","*","*","*","*","*","*","*","*","*","*","*","*","*","*"]
["IS1","NMN","PENINSULA HEALTH LLP",0,"NA","NA","NA",0,0,0,0,0,0,0,0,0,0,0,0,0,0]
["IS1","NEQ","PHOENIX HEALTH SOLUTIONS LIMITED HQ",15,"NA",0.8666666666666667,6.6666666666666666E-2,11,2,1,1,0,0,15,0,0,0,0,0,0,0]
["IS1","NEY","PIONEER HEALTHCARE LIMITED",64,164,0.84375,0.109375,45,9,2,3,4,1,64,0,0,0,0,0,0,0]
["IS1","NTP13","PRACTICE PLUS GROUP HOSPITAL - BARLBOROUGH",307,1064,0.96091205211726383,1.9543973941368076E-2,270,25,5,4,2,1,307,0,0,0,0,0,0,0]
["IS1","NTPH2","PRACTICE PLUS GROUP HOSPITAL - EMERSONS GREEN",154,1637,0.99350649350649356,0,121,32,1,0,0,0,0,154,0,0,0,0,0,0]
["IS1","NTP15","PRACTICE PLUS GROUP HOSPITAL - ILFORD",1405,1910,0.98434163701067612,9.9644128113879002E-3,1175,208,8,10,4,0,0,0,1405,0,0,0,0,0]
["IS1","NTPH5","PRACTICE PLUS GROUP HOSPITAL - PLYMOUTH",126,960,1,0,114,12,0,0,0,0,0,126,0,0,0,0,0,0]
["IS1","NTPH1","PRACTICE PLUS GROUP HOSPITAL - SHEPTON MALLET",71,1505,0.95774647887323938,0,51,17,3,0,0,0,0,71,0,0,0,0,0,0]
["IS1","NTP11","PRACTICE PLUS GROUP HOSPITAL - SOUTHAMPTON",145,2894,0.98620689655172411,0,123,20,2,0,0,0,0,145,0,0,0,0,0,0]
["IS1","NTPAE","PRACTICE PLUS GROUP OPHTHALMOLOGY - NORTH WEST",66,1464,0.98484848484848486,0,42,23,1,0,0,0,0,64,0,0,0,0,2,0]
["IS1","NTPAD","PRACTICE PLUS GROUP SURGICAL CENTRE - ST MARYS PORTSMOUTH",1456,1740,0.99931318681318682,0,1145,310,0,0,0,1,0,1456,0,0,0,0,0,0]
["IS1","NAM","PROBUS SURGERY LIMITED",0,"NA","NA","NA",0,0,0,0,0,0,0,0,0,0,0,0,0,0]
["IS1","NVC","RAMSAY HEALTHCARE UK OPERATIONS LIMITED",1092,73894,0.9926739926739927,7.326007326007326E-3,970,114,0,2,6,0,0,0,0,0,952,0,140,0]
["IS1","NT3","SPIRE HEALTHCARE",468,33444,0.96794871794871795,1.4957264957264958E-2,399,54,8,3,4,0,0,0,0,0,0,0,468,0]
["IS1","AAH","TETBURY HOSPITAL TRUST LTD",0,"NA","NA","NA",0,0,0,0,0,0,0,0,0,0,0,0,0,0]
["IS1","NQT","VIRGIN CARE LTD",113,208,0.99115044247787609,0,72,40,1,0,0,0,0,0,0,0,94,0,19,0]
["IS1","NDA","VIRGIN CARE SERVICES LTD",11,"NA",1,0,11,0,0,0,0,0,0,0,0,0,11,0,0,0]

{"sheet":"BS","index":4,"n_rows":229,"n_cols":24,"rows_kept":229,"cut":false,"hidden":true,"merged":[]}
[null,"Sort","Region (Local Office) code","Region (Local Office) name","Org code","Org name",null,"Sort Lists:","Sort range…","Sort range…","STP Reference Lists:","Code…","Name…","Region (Local Office) Linked Lists:","Code…","Name…","Orgs Reference List:","Code…","Code…","Name…",null,"Orgs Linked List:","Code…","Name…"]
["OP Region (Local Office)",1,1,1,"N/A","N/A",null,null,"STP Code","STP Code",null,"QE1","Healthier Lancashire and South Cumbria",null,"QE1","Healthier Lancashire and South Cumbria",null,"QE1","RXL","BLACKPOOL TEACHING HOSPITALS NHS FOUNDATION TRUST",null,null,"RXL","BLACKPOOL TEACHING HOSPITALS NHS FOUNDATION TRUST"]
["OP Orgs",1,1,1,1,1,null,null,"STP Name","Org Code",null,"QF7","South Yorkshire and Bassetlaw STP",null,"QF7","South Yorkshire and Bassetlaw STP",null,"QE1","RXR","EAST LANCASHIRE HOSPITALS NHS TRUST",null,null,"RXR","EAST LANCASHIRE HOSPITALS NHS TRUST"]
[null,null,null,null,null,null,null,null,"Total Responses","Org Name",null,"QGH","Herefordshire and Worcestershire STP",null,"QGH","Herefordshire and Worcestershire STP",null,"QE1","RXN","LANCASHIRE TEACHING HOSPITALS NHS FOUNDATION TRUST",null,null,"RXN","LANCASHIRE TEACHING HOSPITALS NHS FOUNDATION TRUST"]
[null,null,null,null,null,null,null,null,"Total Eligible","Total Responses",null,"QH8","Mid and South Essex STP",null,"QH8","Mid and South Essex STP",null,"QE1","RTX","UNIVERSITY HOSPITALS OF MORECAMBE BAY NHS FOUNDATION TRUST",null,null,"RTX","UNIVERSITY HOSPITALS OF MORECAMBE BAY NHS FOUNDATION TRUST"]
[null,null,null,null,null,null,null,null,"Percentage Positive","Total Eligible",null,"QHG","Bedfordshire, Luton and Milton Keynes STP",null,"QHG","Bedfordshire, Luton and Milton Keynes STP",null,"QF7","RFF","BARNSLEY HOSPITAL NHS FOUNDATION TRUST",null,null,"RFF","BARNSLEY HOSPITAL NHS FOUNDATION TRUST"]
[null,null,null,null,null,null,null,null,"Percentage Negative","Percentage Positive",null,"QHL","Birmingham and Solihull STP",null,"QHL","Birmingham and Solihull STP",null,"QF7","RP5","DONCASTER AND BASSETLAW TEACHING HOSPITALS NHS FOUNDATION TRUST",null,null,"RP5","DONCASTER AND BASSETLAW TEACHING HOSPITALS NHS FOUNDATION TRUST"]
[null,null,null,null,null,null,null,null,"Very Good","Percentage Negative",null,"QHM","Cumbria and North East STP",null,"QHM","Cumbria and North East STP",null,"QF7","RCU","SHEFFIELD CHILDREN'S NHS FOUNDATION TRUST",null,null,"RCU","SHEFFIELD CHILDREN'S NHS FOUNDATION TRUST"]
[null,null,null,null,null,null,null,null,"Good","Very Good",null,"QJ2","Joined Up Care Derbyshire STP",null,"QJ2","Joined Up Care Derbyshire STP",null,"QF7","RHQ","SHEFFIELD TEACHING HOSPITALS NHS FOUNDATION TRUST",null,null,"RHQ","SHEFFIELD TEACHING HOSPITALS NHS FOUNDATION TRUST"]
[null,null,null,null,null,null,null,null,"Neither Good nor Poor","Good",null,"QJG","Suffolk and North East Essex STP",null,"QJG","Suffolk and North East Essex STP",null,"QF7","RFR","THE ROTHERHAM NHS FOUNDATION TRUST",null,null,"RFR","THE ROTHERHAM NHS FOUNDATION TRUST"]
[null,null,null,null,null,null,null,null,"Poor","Neither Good nor Poor",null,"QJK","Devon STP",null,"QJK","Devon STP",null,"QGH","RWP","WORCESTERSHIRE ACUTE HOSPITALS NHS TRUST",null,null,"RWP","WORCESTERSHIRE ACUTE HOSPITALS NHS TRUST"]
[null,null,null,null,null,null,null,null,"Very Poor","Poor",null,"QJM","Lincolnshire STP",null,"QJM","Lincolnshire STP",null,"QGH","RLQ","WYE VALLEY NHS TRUST",null,null,"RLQ","WYE VALLEY NHS TRUST"]
[null,null,null,null,null,null,null,null,"Don't Know","Very Poor",null,"QK1","Leicester, Leicestershire and Rutland STP",null,"QK1","Leicester, Leicestershire and Rutland STP",null,"QH8","RAJ","MID AND SOUTH ESSEX NHS FOUNDATION TRUST",null,null,"RAJ","MID AND SOUTH ESSEX NHS FOUNDATION TRUST"]
[null,null,null,null,null,null,null,null,null,"Don't Know",null,"QKK","Our Healthier South East London STP",null,"QKK","Our Healthier South East London STP",null,"QHG","RC9","BEDFORDSHIRE HOSPITALS NHS FOUNDATION TRUST",null,null,"RC9","BEDFORDSHIRE HOSPITALS NHS FOUNDATION TRUST"]
[null,null,null,null,null,null,null,null,null,"Mode SMS",null,"QKS","Kent and Medway STP",null,"QKS","Kent and Medway STP",null,"QHG","RD8","MILTON KEYNES UNIVERSITY HOSPITAL NHS FOUNDATION TRUST",null,null,"RD8","MILTON KEYNES UNIVERSITY HOSPITAL NHS FOUNDATION TRUST"]
[null,null,null,null,null,null,null,null,null,"Mode Electronic at Appointment",null,"QM7","Hertfordshire and West Essex STP",null,"QM7","Hertfordshire and West Essex STP",null,"QHL","RQ3","BIRMINGHAM WOMEN'S AND CHILDREN'S NHS FOUNDATION TRUST",null,null,"RQ3","BIRMINGHAM WOMEN'S AND CHILDREN'S NHS FOUNDATION TRUST"]
[null,null,null,null,null,null,null,null,null,"Mode Electronic After Appointment",null,"QMF","East London Health & Care Partnership (STP)",null,"QMF","East London Health & Care Partnership (STP)",null,"QHL","RRK","UNIVERSITY HOSPITALS BIRMINGHAM NHS FOUNDATION TRUST",null,null,"RRK","UNIVERSITY HOSPITALS BIRMINGHAM NHS FOUNDATION TRUST"]
[null,null,null,null,null,null,null,null,null,"Mode Paper At Appointment",null,"QMJ","North London Partners in Health & Care (STP)",null,"QMJ","North London Partners in Health & Care (STP)",null,"QHM","RXP","COUNTY DURHAM AND DARLINGTON NHS FOUNDATION TRUST",null,null,"RXP","COUNTY DURHAM AND DARLINGTON NHS FOUNDATION TRUST"]
[null,null,null,null,null,null,null,null,null,"Mode Paper After Appointment",null,"QMM","Norfolk and Waveney Health & Care Partnership (STP)",null,"QMM","Norfolk and Waveney Health & Care Partnership (STP)",null,"QHM","RR7","GATESHEAD HEALTH NHS FOUNDATION TRUST",null,null,"RR7","GATESHEAD HEALTH NHS FOUNDATION TRUST"]
[null,null,null,null,null,null,null,null,null,"Mode Telephone",null,"QNC","Staffordshire & Stoke on Trent STP",null,"QNC","Staffordshire & Stoke on Trent STP",null,"QHM","RNN","NORTH CUMBRIA INTEGRATED CARE NHS FOUNDATION TRUST",null,null,"RNN","NORTH CUMBRIA INTEGRATED CARE NHS FOUNDATION TRUST"]
[null,null,null,null,null,null,null,null,null,"Mode After",null,"QNQ","Frimley Health & Care (STP)",null,"QNQ","Frimley Health & Care (STP)",null,"QHM","RVW","NORTH TEES AND HARTLEPOOL NHS FOUNDATION TRUST",null,null,"RVW","NORTH TEES AND HARTLEPOOL NHS FOUNDATION TRUST"]
[null,null,null,null,null,null,null,null,null,null,null,"QNX","Sussex Health and Care Partnership STP",null,"QNX","Sussex Health and Care Partnership STP",null,"QHM","RTF","NORTHUMBRIA HEALTHCARE NHS FOUNDATION TRUST",null,null,"RTF","NORTHUMBRIA HEALTHCARE NHS FOUNDATION TRUST"]
[null,null,null,null,null,null,null,null,null,null,null,"QOC","Shropshire and Telford and Wrekin STP",null,"QOC","Shropshire and Telford and Wrekin STP",null,"QHM","RTR","SOUTH TEES HOSPITALS NHS FOUNDATION TRUST",null,null,"RTR","SOUTH TEES HOSPITALS NHS FOUNDATION TRUST"]
[null,null,null,null,null,null,null,null,null,null,null,"QOP","Greater Manchester Health & Social Care Partnership",null,"QOP","Greater Manchester Health & Social Care Partnership",null,"QHM","R0B","SOUTH TYNESIDE AND SUNDERLAND NHS FOUNDATION TRUST",null,null,"R0B","SOUTH TYNESIDE AND SUNDERLAND NHS FOUNDATION TRUST"]
[null,null,null,null,null,null,null,null,null,null,null,"QOQ","Humber, Coast and Vale STP",null,"QOQ","Humber, Coast and Vale STP",null,"QHM","RTD","THE NEWCASTLE UPON TYNE HOSPITALS NHS FOUNDATION TRUST",null,null,"RTD","THE NEWCASTLE UPON TYNE HOSPITALS NHS FOUNDATION TRUST"]
[null,null,null,null,null,null,null,null,null,null,null,"QOX","Bath and North East Somerset, Swindon and Wiltshire STP",null,"QOX","Bath and North East Somerset, Swindon and Wiltshire STP",null,"QJ2","RFS","CHESTERFIELD ROYAL HOSPITAL NHS FOUNDATION TRUST",null,null,"RFS","CHESTERFIELD ROYAL HOSPITAL NHS FOUNDATION TRUST"]
[null,null,null,null,null,null,null,null,null,null,null,"QPM","Northamptonshire STP",null,"QPM","Northamptonshire STP",null,"QJ2","RTG","UNIVERSITY HOSPITALS OF DERBY AND BURTON NHS FOUNDATION TRUST",null,null,"RTG","UNIVERSITY HOSPITALS OF DERBY AND BURTON NHS FOUNDATION TRUST"]
[null,null,null,null,null,null,null,null,null,null,null,"QR1","Gloucestershire STP",null,"QR1","Gloucestershire STP",null,"QJG","RDE","EAST SUFFOLK AND NORTH ESSEX NHS FOUNDATION TRUST",null,null,"RDE","EAST SUFFOLK AND NORTH ESSEX NHS FOUNDATION TRUST"]
[null,null,null,null,null,null,null,null,null,null,null,"QRL","Hampshire and the Isle of Wight STP",null,"QRL","Hampshire and the Isle of Wight STP",null,"QJG","RGR","WEST SUFFOLK NHS FOUNDATION TRUST",null,null,"RGR","WEST SUFFOLK NHS FOUNDATION TRUST"]
[null,null,null,null,null,null,null,null,null,null,null,"QRV","North West London Health & Care Partnership (STP)",null,"QRV","North West London Health & Care Partnership (STP)",null,"QJK","RBZ","NORTHERN DEVON HEALTHCARE NHS TRUST",null,null,"RBZ","NORTHERN DEVON HEALTHCARE NHS TRUST"]
[null,null,null,null,null,null,null,null,null,null,null,"QSL","Somerset STP",null,"QSL","Somerset STP",null,"QJK","RH8","ROYAL DEVON AND EXETER NHS FOUNDATION TRUST",null,null,"RH8","ROYAL DEVON AND EXETER NHS FOUNDATION TRUST"]
[null,null,null,null,null,null,null,null,null,null,null,"QT1","Nottingham and Nottinghamshire Health and Care STP",null,"QT1","Nottingham and Nottinghamshire Health and Care STP",null,"QJK","RA9","TORBAY AND SOUTH DEVON NHS FOUNDATION TRUST",null,null,"RA9","TORBAY AND SOUTH DEVON NHS FOUNDATION TRUST"]
[null,null,null,null,null,null,null,null,null,null,null,"QT6","Cornwall and the Isles of Scilly Health & Social Care Partnership (STP)",null,"QT6","Cornwall and the Isles of Scilly Health & Social Care Partnership (STP)",null,"QJK","RK9","UNIVERSITY HOSPITALS PLYMOUTH NHS TRUST",null,null,"RK9","UNIVERSITY HOSPITALS PLYMOUTH NHS TRUST"]
[null,null,null,null,null,null,null,null,null,null,null,"QU9","Buckinghamshire, Oxfordshire and Berkshire West STP",null,"QU9","Buckinghamshire, Oxfordshire and Berkshire West STP",null,"QJM","RWD","UNITED LINCOLNSHIRE HOSPITALS NHS TRUST",null,null,"RWD","UNITED LINCOLNSHIRE HOSPITALS NHS TRUST"]
[null,null,null,null,null,null,null,null,null,null,null,"QUA","The Black Country and West Birmingham STP",null,"QUA","The Black Country and West Birmingham STP",null,"QK1","RWE","UNIVERSITY HOSPITALS OF LEICESTER NHS TRUST",null,null,"RWE","UNIVERSITY HOSPITALS OF LEICESTER NHS TRUST"]
[null,null,null,null,null,null,null,null,null,null,null,"QUE","Cambridgeshire and Peterborough STP",null,"QUE","Cambridgeshire and Peterborough STP",null,"QKK","RJ1","GUY'S AND ST THOMAS' NHS FOUNDATION TRUST",null,null,"RJ1","GUY'S AND ST THOMAS' NHS FOUNDATION TRUST"]
[null,null,null,null,null,null,null,null,null,null,null,"QUY","Bristol, North Somerset and South Gloucestershire STP",null,"QUY","Bristol, North Somerset and South Gloucestershire STP",null,"QKK","RJZ","KING'S COLLEGE HOSPITAL NHS FOUNDATION TRUST",null,null,"RJZ","KING'S COLLEGE HOSPITAL NHS FOUNDATION TRUST"]
[null,null,null,null,null,null,null,null,null,null,null,"QVV","Dorset STP",null,"QVV","Dorset STP",null,"QKK","RJ2","LEWISHAM AND GREENWICH NHS TRUST",null,null,"RJ2","LEWISHAM AND GREENWICH NHS TRUST"]
[null,null,null,null,null,null,null,null,null,null,null,"QWE","South West London Health & Care Partnership (STP)",null,"QWE","South West London Health & Care Partnership (STP)",null,"QKS","RN7","DARTFORD AND GRAVESHAM NHS TRUST",null,null,"RN7","DARTFORD AND GRAVESHAM NHS TRUST"]
[null,null,null,null,null,null,null,null,null,null,null,"QWO","West Yorkshire and Harrogate Health & Care Partnership (STP)",null,"QWO","West Yorkshire and Harrogate Health & Care Partnership (STP)",null,"QKS","RVV","EAST KENT HOSPITALS UNIVERSITY NHS FOUNDATION TRUST",null,null,"RVV","EAST KENT HOSPITALS UNIVERSITY NHS FOUNDATION TRUST"]
[null,null,null,null,null,null,null,null,null,null,null,"QWU","Coventry and Warwickshire STP",null,"QWU","Coventry and Warwickshire STP",null,"QKS","RWF","MAIDSTONE AND TUNBRIDGE WELLS NHS TRUST",null,null,"RWF","MAIDSTONE AND TUNBRIDGE WELLS NHS TRUST"]
[null,null,null,null,null,null,null,null,null,null,null,"QXU","Surrey Heartlands Health & Care Partnership (STP)",null,"QXU","Surrey Heartlands Health & Care Partnership (STP)",null,"QKS","RPA","MEDWAY NHS FOUNDATION TRUST",null,null,"RPA","MEDWAY NHS FOUNDATION TRUST"]
[null,null,null,null,null,null,null,null,null,null,null,"QYG","Cheshire and Merseyside STP",null,"QYG","Cheshire and Merseyside STP",null,"QM7","RWH","EAST AND NORTH HERTFORDSHIRE NHS TRUST",null,null,"RWH","EAST AND NORTH HERTFORDSHIRE NHS TRUST"]
[null,null,null,null,null,null,null,null,null,null,null,"zIS1","Independent Sector Providers",null,"zIS1","Independent Sector Providers",null,"QM7","RQW","THE PRINCESS ALEXANDRA HOSPITAL NHS TRUST",null,null,"RQW","THE PRINCESS ALEXANDRA HOSPITAL NHS TRUST"]
[null,null,null,null,null,null,null,null,null,null,null,null,null,null,null,null,null,"QM7","RWG","WEST HERTFORDSHIRE HOSPITALS NHS TRUST",null,null,"RWG","WEST HERTFORDSHIRE HOSPITALS NHS TRUST"]
[null,null,null,null,null,null,null,null,null,null,null,null,null,null,null,null,null,"QMF","RF4","BARKING, HAVERING AND REDBRIDGE UNIVERSITY HOSPITALS NHS TRUST",null,null,"RF4","BARKING, HAVERING AND REDBRIDGE UNIVERSITY HOSPITALS NHS TRUST"]
[null,null,null,null,null,null,null,null,null,null,null,null,null,null,null,null,null,"QMF","R1H","BARTS HEALTH NHS TRUST",null,null,"R1H","BARTS HEALTH NHS TRUST"]
[null,null,null,null,null,null,null,null,null,null,null,null,null,null,null,null,null,"QMF","RQX","HOMERTON UNIVERSITY HOSPITAL NHS FOUNDATION TRUST",null,null,"RQX","HOMERTON UNIVERSITY HOSPITAL NHS FOUNDATION TRUST"]
[null,null,null,null,null,null,null,null,null,null,null,null,null,null,null,null,null,"QMJ","RP4","GREAT ORMOND STREET HOSPITAL FOR CHILDREN NHS FOUNDATION TRUST",null,null,"RP4","GREAT ORMOND STREET HOSPITAL FOR CHILDREN NHS FOUNDATION TRUST"]
[null,null,null,null,null,null,null,null,null,null,null,null,null,null,null,null,null,"QMJ","RP6","MOORFIELDS EYE HOSPITAL NHS FOUNDATION TRUST",null,null,"RP6","MOORFIELDS EYE HOSPITAL NHS FOUNDATION TRUST"]
[null,null,null,null,null,null,null,null,null,null,null,null,null,null,null,null,null,"QMJ","RAP","NORTH MIDDLESEX UNIVERSITY HOSPITAL NHS TRUST",null,null,"RAP","NORTH MIDDLESEX UNIVERSITY HOSPITAL NHS TRUST"]
[null,null,null,null,null,null,null,null,null,null,null,null,null,null,null,null,null,"QMJ","RAL","ROYAL FREE LONDON NHS FOUNDATION TRUST",null,null,"RAL","ROYAL FREE LONDON NHS FOUNDATION TRUST"]
[null,null,null,null,null,null,null,null,null,null,null,null,null,null,null,null,null,"QMJ","RRV","UNIVERSITY COLLEGE LONDON HOSPITALS NHS FOUNDATION TRUST",null,null,"RRV","UNIVERSITY COLLEGE LONDON HOSPITALS NHS FOUNDATION TRUST"]
[null,null,null,null,null,null,null,null,null,null,null,null,null,null,null,null,null,"QMJ","RKE","WHITTINGTON HEALTH NHS TRUST",null,null,"RKE","WHITTINGTON HEALTH NHS TRUST"]
[null,null,null,null,null,null,null,null,null,null,null,null,null,null,null,null,null,"QMM","RGP","JAMES PAGET UNIVERSITY HOSPITALS NHS FOUNDATION TRUST",null,null,"RGP","JAMES PAGET UNIVERSITY HOSPITALS NHS FOUNDATION TRUST"]
[null,null,null,null,null,null,null,null,null,null,null,null,null,null,null,null,null,"QMM","RM1","NORFOLK AND NORWICH UNIVERSITY HOSPITALS NHS FOUNDATION TRUST",null,null,"RM1","NORFOLK AND NORWICH UNIVERSITY HOSPITALS NHS FOUNDATION TRUST"]
[null,null,null,null,null,null,null,null,null,null,null,null,null,null,null,null,null,"QMM","RCX","THE QUEEN ELIZABETH HOSPITAL, KING'S LYNN, NHS FOUNDATION TRUST",null,null,"RCX","THE QUEEN ELIZABETH HOSPITAL, KING'S LYNN, NHS FOUNDATION TRUST"]
[null,null,null,null,null,null,null,null,null,null,null,null,null,null,null,null,null,"QNC","RRE","MIDLANDS PARTNERSHIP NHS FOUNDATION TRUST",null,null,"RRE","MIDLANDS PARTNERSHIP NHS FOUNDATION TRUST"]
[null,null,null,null,null,null,null,null,null,null,null,null,null,null,null,null,null,"QNC","RJE","UNIVERSITY HOSPITALS OF NORTH MIDLANDS NHS TRUST",null,null,"RJE","UNIVERSITY HOSPITALS OF NORTH MIDLANDS NHS TRUST"]
[null,null,null,null,null,null,null,null,null,null,null,null,null,null,null,null,null,"QNQ","RDU","FRIMLEY HEALTH NHS FOUNDATION TRUST",null,null,"RDU","FRIMLEY HEALTH NHS FOUNDATION TRUST"]
[null,null,null,null,null,null,null,null,null,null,null,null,null,null,null,null,null,"QNX","RXC","EAST SUSSEX HEALTHCARE NHS TRUST",null,null,"RXC","EAST SUSSEX HEALTHCARE NHS TRUST"]
[null,null,null,null,null,null,null,null,null,null,null,null,null,null,null,null,null,"QNX","RPC","QUEEN VICTORIA HOSPITAL NHS FOUNDATION TRUST",null,null,"RPC","QUEEN VICTORIA HOSPITAL NHS FOUNDATION TRUST"]
[null,null,null,null,null,null,null,null,null,null,null,null,null,null,null,null,null,"QNX","RYR","UNIVERSITY HOSPITALS SUSSEX NHS FOUNDATION TRUST",null,null,"RYR","UNIVERSITY HOSPITALS SUSSEX NHS FOUNDATION TRUST"]
[null,null,null,null,null,null,null,null,null,null,null,null,null,null,null,null,null,"QOC","RL1","THE ROBERT JONES AND AGNES HUNT ORTHOPAEDIC HOSPITAL NHS FOUNDATION TRUST",null,null,"RL1","THE ROBERT JONES AND AGNES HUNT ORTHOPAEDIC HOSPITAL NHS FOUNDATION TRUST"]
[null,null,null,null,null,null,null,null,null,null,null,null,null,null,null,null,null,"QOC","RXW","THE SHREWSBURY AND TELFORD HOSPITAL NHS TRUST",null,null,"RXW","THE SHREWSBURY AND TELFORD HOSPITAL NHS TRUST"]
[null,null,null,null,null,null,null,null,null,null,null,null,null,null,null,null,null,"QOP","RMC","BOLTON NHS FOUNDATION TRUST",null,null,"RMC","BOLTON NHS FOUNDATION TRUST"]
[null,null,null,null,null,null,null,null,null,null,null,null,null,null,null,null,null,"QOP","R0A","MANCHESTER UNIVERSITY NHS FOUNDATION TRUST",null,null,"R0A","MANCHESTER UNIVERSITY NHS FOUNDATION TRUST"]
[null,null,null,null,null,null,null,null,null,null,null,null,null,null,null,null,null,"QOP","RWJ","STOCKPORT NHS FOUNDATION TRUST",null,null,"RWJ","STOCKPORT NHS FOUNDATION TRUST"]
[null,null,null,null,null,null,null,null,null,null,null,null,null,null,null,null,null,"QOP","RMP","TAMESIDE AND GLOSSOP INTEGRATED CARE NHS FOUNDATION TRUST",null,null,"RMP","TAMESIDE AND GLOSSOP INTEGRATED CARE NHS FOUNDATION TRUST"]
[null,null,null,null,null,null,null,null,null,null,null,null,null,null,null,null,null,"QOP","RBV","THE CHRISTIE NHS FOUNDATION TRUST",null,null,"RBV","THE CHRISTIE NHS FOUNDATION TRUST"]
[null,null,null,null,null,null,null,null,null,null,null,null,null,null,null,null,null,"QOP","RRF","WRIGHTINGTON, WIGAN AND LEIGH NHS FOUNDATION TRUST",null,null,"RRF","WRIGHTINGTON, WIGAN AND LEIGH NHS FOUNDATION TRUST"]
[null,null,null,null,null,null,null,null,null,null,null,null,null,null,null,null,null,"QOQ","RCD","HARROGATE AND DISTRICT NHS FOUNDATION TRUST",null,null,"RCD","HARROGATE AND DISTRICT NHS FOUNDATION TRUST"]
[null,null,null,null,null,null,null,null,null,null,null,null,null,null,null,null,null,"QOQ","RWA","HULL UNIVERSITY TEACHING HOSPITALS NHS TRUST",null,null,"RWA","HULL UNIVERSITY TEACHING HOSPITALS NHS TRUST"]
[null,null,null,null,null,null,null,null,null,null,null,null,null,null,null,null,null,"QOQ","RJL","NORTHERN LINCOLNSHIRE AND GOOLE NHS FOUNDATION TRUST",null,null,"RJL","NORTHERN LINCOLNSHIRE AND GOOLE NHS FOUNDATION TRUST"]
[null,null,null,null,null,null,null,null,null,null,null,null,null,null,null,null,null,"QOQ","RCB","YORK AND SCARBOROUGH TEACHING HOSPITALS NHS FOUNDATION TRUST",null,null,"RCB","YORK AND SCARBOROUGH TEACHING HOSPITALS NHS FOUNDATION TRUST"]
[null,null,null,null,null,null,null,null,null,null,null,null,null,null,null,null,null,"QOX","RN3","GREAT WESTERN HOSPITALS NHS FOUNDATION TRUST",null,null,"RN3","GREAT WESTERN HOSPITALS NHS FOUNDATION TRUST"]
[null,null,null,null,null,null,null,null,null,null,null,null,null,null,null,null,null,"QOX","RNZ","SALISBURY NHS FOUNDATION TRUST",null,null,"RNZ","SALISBURY NHS FOUNDATION TRUST"]
[null,null,null,null,null,null,null,null,null,null,null,null,null,null,null,null,null,"QPM","RNQ","KETTERING GENERAL HOSPITAL NHS FOUNDATION TRUST",null,null,"RNQ","KETTERING GENERAL HOSPITAL NHS FOUNDATION TRUST"]
[null,null,null,null,null,null,null,null,null,null,null,null,null,null,null,null,null,"QPM","RNS","NORTHAMPTON GENERAL HOSPITAL NHS TRUST",null,null,"RNS","NORTHAMPTON GENERAL HOSPITAL NHS TRUST"]
[null,null,null,null,null,null,null,null,null,null,null,null,null,null,null,null,null,"QR1","RTE","GLOUCESTERSHIRE HOSPITALS NHS FOUNDATION TRUST",null,null,"RTE","GLOUCESTERSHIRE HOSPITALS NHS FOUNDATION TRUST"]
[null,null,null,null,null,null,null,null,null,null,null,null,null,null,null,null,null,"QRL","RN5","HAMPSHIRE HOSPITALS NHS FOUNDATION TRUST",null,null,"RN5","HAMPSHIRE HOSPITALS NHS FOUNDATION TRUST"]
[null,null,null,null,null,null,null,null,null,null,null,null,null,null,null,null,null,"QRL","R1F","ISLE OF WIGHT NHS TRUST",null,null,"R1F","ISLE OF WIGHT NHS TRUST"]
[null,null,null,null,null,null,null,null,null,null,null,null,null,null,null,null,null,"QRL","RHU","PORTSMOUTH HOSPITALS UNIVERSITY NATIONAL HEALTH SERVICE TRUST",null,null,"RHU","PORTSMOUTH HOSPITALS UNIVERSITY NATIONAL HEALTH SERVICE TRUST"]
[null,null,null,null,null,null,null,null,null,null,null,null,null,null,null,null,null,"QRL","RHM","UNIVERSITY HOSPITAL SOUTHAMPTON NHS FOUNDATION TRUST",null,null,"RHM","UNIVERSITY HOSPITAL SOUTHAMPTON NHS FOUNDATION TRUST"]
[null,null,null,null,null,null,null,null,null,null,null,null,null,null,null,null,null,"QRV","RQM","CHELSEA AND WESTMINSTER HOSPITAL NHS FOUNDATION TRUST",null,null,"RQM","CHELSEA AND WESTMINSTER HOSPITAL NHS FOUNDATION TRUST"]
[null,null,null,null,null,null,null,null,null,null,null,null,null,null,null,null,null,"QRV","RYJ","IMPERIAL COLLEGE HEALTHCARE NHS TRUST",null,null,"RYJ","IMPERIAL COLLEGE HEALTHCARE NHS TRUST"]
[null,null,null,null,null,null,null,null,null,null,null,null,null,null,null,null,null,"QRV","R1K","LONDON NORTH WEST UNIVERSITY HEALTHCARE NHS TRUST",null,null,"R1K","LONDON NORTH WEST UNIVERSITY HEALTHCARE NHS TRUST"]
[null,null,null,null,null,null,null,null,null,null,null,null,null,null,null,null,null,"QRV","RAN","ROYAL NATIONAL ORTHOPAEDIC HOSPITAL NHS TRUST",null,null,"RAN","ROYAL NATIONAL ORTHOPAEDIC HOSPITAL NHS TRUST"]
[null,null,null,null,null,null,null,null,null,null,null,null,null,null,null,null,null,"QRV","RAS","THE HILLINGDON HOSPITALS NHS FOUNDATION TRUST",null,null,"RAS","THE HILLINGDON HOSPITALS NHS FOUNDATION TRUST"]
[null,null,null,null,null,null,null,null,null,null,null,null,null,null,null,null,null,"QRV","RPY","THE ROYAL MARSDEN NHS FOUNDATION TRUST",null,null,"RPY","THE ROYAL MARSDEN NHS FOUNDATION TRUST"]
[null,null,null,null,null,null,null,null,null,null,null,null,null,null,null,null,null,"QSL","RH5","SOMERSET NHS FOUNDATION TRUST",null,null,"RH5","SOMERSET NHS FOUNDATION TRUST"]
[null,null,null,null,null,null,null,null,null,null,null,null,null,null,null,null,null,"QSL","RA4","YEOVIL DISTRICT HOSPITAL NHS FOUNDATION TRUST",null,null,"RA4","YEOVIL DISTRICT HOSPITAL NHS FOUNDATION TRUST"]
[null,null,null,null,null,null,null,null,null,null,null,null,null,null,null,null,null,"QT1","RX1","NOTTINGHAM UNIVERSITY HOSPITALS NHS TRUST",null,null,"RX1","NOTTINGHAM UNIVERSITY HOSPITALS NHS TRUST"]
[null,null,null,null,null,null,null,null,null,null,null,null,null,null,null,null,null,"QT1","RK5","SHERWOOD FOREST HOSPITALS NHS FOUNDATION TRUST",null,null,"RK5","SHERWOOD FOREST HOSPITALS NHS FOUNDATION TRUST"]
[null,null,null,null,null,null,null,null,null,null,null,null,null,null,null,null,null,"QT6","REF","ROYAL CORNWALL HOSPITALS NHS TRUST",null,null,"REF","ROYAL CORNWALL HOSPITALS NHS TRUST"]
[null,null,null,null,null,null,null,null,null,null,null,null,null,null,null,null,null,"QU9","RXQ","BUCKINGHAMSHIRE HEALTHCARE NHS TRUST",null,null,"RXQ","BUCKINGHAMSHIRE HEALTHCARE NHS TRUST"]
[null,null,null,null,null,null,null,null,null,null,null,null,null,null,null,null,null,"QU9","RTH","OXFORD UNIVERSITY HOSPITALS NHS FOUNDATION TRUST",null,null,"RTH","OXFORD UNIVERSITY HOSPITALS NHS FOUNDATION TRUST"]
[null,null,null,null,null,null,null,null,null,null,null,null,null,null,null,null,null,"QU9","RHW","ROYAL BERKSHIRE NHS FOUNDATION TRUST",null,null,"RHW","ROYAL BERKSHIRE NHS FOUNDATION TRUST"]
[null,null,null,null,null,null,null,null,null,null,null,null,null,null,null,null,null,"QUA","RXK","SANDWELL AND WEST BIRMINGHAM HOSPITALS NHS TRUST",null,null,"RXK","SANDWELL AND WEST BIRMINGHAM HOSPITALS NHS TRUST"]
[null,null,null,null,null,null,null,null,null,null,null,null,null,null,null,null,null,"QUA","RNA","THE DUDLEY GROUP NHS FOUNDATION TRUST",null,null,"RNA","THE DUDLEY GROUP NHS FOUNDATION TRUST"]
[null,null,null,null,null,null,null,null,null,null,null,null,null,null,null,null,null,"QUA","RL4","THE ROYAL WOLVERHAMPTON NHS TRUST",null,null,"RL4","THE ROYAL WOLVERHAMPTON NHS TRUST"]
[null,null,null,null,null,null,null,null,null,null,null,null,null,null,null,null,null,"QUA","RBK","WALSALL HEALTHCARE NHS TRUST",null,null,"RBK","WALSALL HEALTHCARE NHS TRUST"]
[null,null,null,null,null,null,null,null,null,null,null,null,null,null,null,null,null,"QUE","RGT","CAMBRIDGE UNIVERSITY HOSPITALS NHS FOUNDATION TRUST",null,null,"RGT","CAMBRIDGE UNIVERSITY HOSPITALS NHS FOUNDATION TRUST"]
[null,null,null,null,null,null,null,null,null,null,null,null,null,null,null,null,null,"QUE","RGN","NORTH WEST ANGLIA NHS FOUNDATION TRUST",null,null,"RGN","NORTH WEST ANGLIA NHS FOUNDATION TRUST"]
[null,null,null,null,null,null,null,null,null,null,null,null,null,null,null,null,null,"QUE","RGM","ROYAL PAPWORTH HOSPITAL NHS FOUNDATION TRUST",null,null,"RGM","ROYAL PAPWORTH HOSPITAL NHS FOUNDATION TRUST"]
[null,null,null,null,null,null,null,null,null,null,null,null,null,null,null,null,null,"QUY","RVJ","NORTH BRISTOL NHS TRUST",null,null,"RVJ","NORTH BRISTOL NHS TRUST"]
[null,null,null,null,null,null,null,null,null,null,null,null,null,null,null,null,null,"QUY","RA7","UNIVERSITY HOSPITALS BRISTOL AND WESTON NHS FOUNDATION TRUST",null,null,"RA7","UNIVERSITY HOSPITALS BRISTOL AND WESTON NHS FOUNDATION TRUST"]
[null,null,null,null,null,null,null,null,null,null,null,null,null,null,null,null,null,"QVV","RBD","DORSET COUNTY HOSPITAL NHS FOUNDATION TRUST",null,null,"RBD","DORSET COUNTY HOSPITAL NHS FOUNDATION TRUST"]
[null,null,null,null,null,null,null,null,null,null,null,null,null,null,null,null,null,"QVV","R0D","UNIVERSITY HOSPITALS DORSET NHS FOUNDATION TRUST",null,null,"R0D","UNIVERSITY HOSPITALS DORSET NHS FOUNDATION TRUST"]
[null,null,null,null,null,null,null,null,null,null,null,null,null,null,null,null,null,"QWE","RJ6","CROYDON HEALTH SERVICES NHS TRUST",null,null,"RJ6","CROYDON HEALTH SERVICES NHS TRUST"]
[null,null,null,null,null,null,null,null,null,null,null,null,null,null,null,null,null,"QWE","RVR","EPSOM AND ST HELIER UNIVERSITY HOSPITALS NHS TRUST",null,null,"RVR","EPSOM AND ST HELIER UNIVERSITY HOSPITALS NHS TRUST"]
[null,null,null,null,null,null,null,null,null,null,null,null,null,null,null,null,null,"QWE","RAX","KINGSTON HOSPITAL NHS FOUNDATION TRUST",null,null,"RAX","KINGSTON HOSPITAL NHS FOUNDATION TRUST"]
[null,null,null,null,null,null,null,null,null,null,null,null,null,null,null,null,null,"QWE","RJ7","ST GEORGE'S UNIVERSITY HOSPITALS NHS FOUNDATION TRUST",null,null,"RJ7","ST GEORGE'S UNIVERSITY HOSPITALS NHS FOUNDATION TRUST"]
[null,null,null,null,null,null,null,null,null,null,null,null,null,null,null,null,null,"QWO","RCF","AIREDALE NHS FOUNDATION TRUST",null,null,"RCF","AIREDALE NHS FOUNDATION TRUST"]
[null,null,null,null,null,null,null,null,null,null,null,null,null,null,null,null,null,"QWO","RAE","BRADFORD TEACHING HOSPITALS NHS FOUNDATION TRUST",null,null,"RAE","BRADFORD TEACHING HOSPITALS NHS FOUNDATION TRUST"]
[null,null,null,null,null,null,null,null,null,null,null,null,null,null,null,null,null,"QWO","RWY","CALDERDALE AND HUDDERSFIELD NHS FOUNDATION TRUST",null,null,"RWY","CALDERDALE AND HUDDERSFIELD NHS FOUNDATION TRUST"]
[null,null,null,null,null,null,null,null,null,null,null,null,null,null,null,null,null,"QWO","RR8","LEEDS TEACHING HOSPITALS NHS TRUST",null,null,"RR8","LEEDS TEACHING HOSPITALS NHS TRUST"]
[null,null,null,null,null,null,null,null,null,null,null,null,null,null,null,null,null,"QWO","RXF","MID YORKSHIRE HOSPITALS NHS TRUST",null,null,"RXF","MID YORKSHIRE HOSPITALS NHS TRUST"]
[null,null,null,null,null,null,null,null,null,null,null,null,null,null,null,null,null,"QWU","RLT","GEORGE ELIOT HOSPITAL NHS TRUST",null,null,"RLT","GEORGE ELIOT HOSPITAL NHS TRUST"]
[null,null,null,null,null,null,null,null,null,null,null,null,null,null,null,null,null,"QWU","RJC","SOUTH WARWICKSHIRE NHS FOUNDATION TRUST",null,null,"RJC","SOUTH WARWICKSHIRE NHS FOUNDATION TRUST"]
[null,null,null,null,null,null,null,null,null,null,null,null,null,null,null,null,null,"QWU","RKB","UNIVERSITY HOSPITALS COVENTRY AND WARWICKSHIRE NHS TRUST",null,null,"RKB","UNIVERSITY HOSPITALS COVENTRY AND WARWICKSHIRE NHS TRUST"]
[null,null,null,null,null,null,null,null,null,null,null,null,null,null,null,null,null,"QXU","RTK","ASHFORD AND ST PETER'S HOSPITALS NHS FOUNDATION TRUST",null,null,"RTK","ASHFORD AND ST PETER'S HOSPITALS NHS FOUNDATION TRUST"]
[null,null,null,null,null,null,null,null,null,null,null,null,null,null,null,null,null,"QXU","RA2","ROYAL SURREY COUNTY HOSPITAL NHS FOUNDATION TRUST",null,null,"RA2","ROYAL SURREY COUNTY HOSPITAL NHS FOUNDATION TRUST"]
[null,null,null,null,null,null,null,null,null,null,null,null,null,null,null,null,null,"QXU","RTP","SURREY AND SUSSEX HEALTHCARE NHS TRUST",null,null,"RTP","SURREY AND SUSSEX HEALTHCARE NHS TRUST"]
[null,null,null,null,null,null,null,null,null,null,null,null,null,null,null,null,null,"QYG","RBS","ALDER HEY CHILDREN'S NHS FOUNDATION TRUST",null,null,"RBS","ALDER HEY CHILDREN'S NHS FOUNDATION TRUST"]
[null,null,null,null,null,null,null,null,null,null,null,null,null,null,null,null,null,"QYG","RJR","COUNTESS OF CHESTER HOSPITAL NHS FOUNDATION TRUST",null,null,"RJR","COUNTESS OF CHESTER HOSPITAL NHS FOUNDATION TRUST"]
[null,null,null,null,null,null,null,null,null,null,null,null,null,null,null,null,null,"QYG","RJN","EAST CHESHIRE NHS TRUST",null,null,"RJN","EAST CHESHIRE NHS TRUST"]
[null,null,null,null,null,null,null,null,null,null,null,null,null,null,null,null,null,"QYG","RBQ","LIVERPOOL HEART AND CHEST HOSPITAL NHS FOUNDATION TRUST",null,null,"RBQ","LIVERPOOL HEART AND CHEST HOSPITAL NHS FOUNDATION TRUST"]
[null,null,null,null,null,null,null,null,null,null,null,null,null,null,null,null,null,"QYG","REM","LIVERPOOL UNIVERSITY HOSPITALS NHS FOUNDATION TRUST",null,null,"REM","LIVERPOOL UNIVERSITY HOSPITALS NHS FOUNDATION TRUST"]
[null,null,null,null,null,null,null,null,null,null,null,null,null,null,null,null,null,"QYG","REP","LIVERPOOL WOMEN'S NHS FOUNDATION TRUST",null,null,"REP","LIVERPOOL WOMEN'S NHS FOUNDATION TRUST"]
[null,null,null,null,null,null,null,null,null,null,null,null,null,null,null,null,null,"QYG","RBT","MID CHESHIRE HOSPITALS NHS FOUNDATION TRUST",null,null,"RBT","MID CHESHIRE HOSPITALS NHS FOUNDATION TRUST"]
[null,null,null,null,null,null,null,null,null,null,null,null,null,null,null,null,null,"QYG","RVY","SOUTHPORT AND ORMSKIRK HOSPITAL NHS TRUST",null,null,"RVY","SOUTHPORT AND ORMSKIRK HOSPITAL NHS TRUST"]
[null,null,null,null,null,null,null,null,null,null,null,null,null,null,null,null,null,"QYG","RBN","ST HELENS AND KNOWSLEY TEACHING HOSPITALS NHS TRUST",null,null,"RBN","ST HELENS AND KNOWSLEY TEACHING HOSPITALS NHS TRUST"]
[null,null,null,null,null,null,null,null,null,null,null,null,null,null,null,null,null,"QYG","REN","THE CLATTERBRIDGE CANCER CENTRE NHS FOUNDATION TRUST",null,null,"REN","THE CLATTERBRIDGE CANCER CENTRE NHS FOUNDATION TRUST"]
[null,null,null,null,null,null,null,null,null,null,null,null,null,null,null,null,null,"QYG","RET","THE WALTON CENTRE NHS FOUNDATION TRUST",null,null,"RET","THE WALTON CENTRE NHS FOUNDATION TRUST"]
[null,null,null,null,null,null,null,null,null,null,null,null,null,null,null,null,null,"QYG","RWW","WARRINGTON AND HALTON TEACHING HOSPITALS NHS FOUNDATION TRUST",null,null,"RWW","WARRINGTON AND HALTON TEACHING HOSPITALS NHS FOUNDATION TRUST"]
[null,null,null,null,null,null,null,null,null,null,null,null,null,null,null,null,null,"QYG","RBL","WIRRAL UNIVERSITY TEACHING HOSPITAL NHS FOUNDATION TRUST",null,null,"RBL","WIRRAL UNIVERSITY TEACHING HOSPITAL NHS FOUNDATION TRUST"]
[null,null,null,null,null,null,null,null,null,null,null,null,null,null,null,null,null,"IS1","NYW17","ASPEN HEALTHCARE - MIDLAND EYE",null,null,"NYW17","ASPEN HEALTHCARE - MIDLAND EYE"]
[null,null,null,null,null,null,null,null,null,null,null,null,null,null,null,null,null,"IS1","NWF01","BENENDEN HOSPITAL",null,null,"NWF01","BENENDEN HOSPITAL"]
[null,null,null,null,null,null,null,null,null,null,null,null,null,null,null,null,null,"IS1","NT402","BMI - BATH CLINIC",null,null,"NT402","BMI - BATH CLINIC"]
[null,null,null,null,null,null,null,null,null,null,null,null,null,null,null,null,null,"IS1","NT405","BMI - BISHOPS WOOD",null,null,"NT405","BMI - BISHOPS WOOD"]
[null,null,null,null,null,null,null,null,null,null,null,null,null,null,null,null,null,"IS1","NT409","BMI - CHELSFIELD PARK HOSPITAL",null,null,"NT409","BMI - CHELSFIELD PARK HOSPITAL"]
[null,null,null,null,null,null,null,null,null,null,null,null,null,null,null,null,null,"IS1","NT417","BMI - GORING HALL HOSPITAL",null,null,"NT417","BMI - GORING HALL HOSPITAL"]
[null,null,null,null,null,null,null,null,null,null,null,null,null,null,null,null,null,"IS1","NT416","BMI - HENDON HOSPITAL",null,null,"NT416","BMI - HENDON HOSPITAL"]
[null,null,null,null,null,null,null,null,null,null,null,null,null,null,null,null,null,"IS1","NT433","BMI - SARUM ROAD HOSPITAL",null,null,"NT433","BMI - SARUM ROAD HOSPITAL"]
[null,null,null,null,null,null,null,null,null,null,null,null,null,null,null,null,null,"IS1","NT436","BMI - SHIRLEY OAKS HOSPITAL",null,null,"NT436","BMI - SHIRLEY OAKS HOSPITAL"]
[null,null,null,null,null,null,null,null,null,null,null,null,null,null,null,null,null,"IS1","NT401","BMI - THE ALEXANDRA HOSPITAL",null,null,"NT401","BMI - THE ALEXANDRA HOSPITAL"]
[null,null,null,null,null,null,null,null,null,null,null,null,null,null,null,null,null,"IS1","NT403","BMI - THE BEARDWOOD HOSPITAL",null,null,"NT403","BMI - THE BEARDWOOD HOSPITAL"]
[null,null,null,null,null,null,null,null,null,null,null,null,null,null,null,null,null,"IS1","NT404","BMI - THE BEAUMONT HOSPITAL",null,null,"NT404","BMI - THE BEAUMONT HOSPITAL"]
[null,null,null,null,null,null,null,null,null,null,null,null,null,null,null,null,null,"IS1","NT406","BMI - THE BLACKHEATH HOSPITAL",null,null,"NT406","BMI - THE BLACKHEATH HOSPITAL"]
[null,null,null,null,null,null,null,null,null,null,null,null,null,null,null,null,null,"IS1","NT408","BMI - THE CHAUCER HOSPITAL",null,null,"NT408","BMI - THE CHAUCER HOSPITAL"]
[null,null,null,null,null,null,null,null,null,null,null,null,null,null,null,null,null,"IS1","NT410","BMI - THE CHILTERN HOSPITAL",null,null,"NT410","BMI - THE CHILTERN HOSPITAL"]
[null,null,null,null,null,null,null,null,null,null,null,null,null,null,null,null,null,"IS1","NT411","BMI - THE CLEMENTINE CHURCHILL HOSPITAL",null,null,"NT411","BMI - THE CLEMENTINE CHURCHILL HOSPITAL"]
[null,null,null,null,null,null,null,null,null,null,null,null,null,null,null,null,null,"IS1","NT412","BMI - THE DROITWICH SPA HOSPITAL",null,null,"NT412","BMI - THE DROITWICH SPA HOSPITAL"]
[null,null,null,null,null,null,null,null,null,null,null,null,null,null,null,null,null,"IS1","NT418","BMI - THE HAMPSHIRE CLINIC",null,null,"NT418","BMI - THE HAMPSHIRE CLINIC"]
[null,null,null,null,null,null,null,null,null,null,null,null,null,null,null,null,null,"IS1","NT419","BMI - THE HARBOUR HOSPITAL",null,null,"NT419","BMI - THE HARBOUR HOSPITAL"]
[null,null,null,null,null,null,null,null,null,null,null,null,null,null,null,null,null,"IS1","NT420","BMI - THE HIGHFIELD HOSPITAL",null,null,"NT420","BMI - THE HIGHFIELD HOSPITAL"]
[null,null,null,null,null,null,null,null,null,null,null,null,null,null,null,null,null,"IS1","NT421","BMI - THE KINGS OAK HOSPITAL",null,null,"NT421","BMI - THE KINGS OAK HOSPITAL"]
[null,null,null,null,null,null,null,null,null,null,null,null,null,null,null,null,null,"IS1","NT422","BMI - THE LONDON INDEPENDENT HOSPITAL",null,null,"NT422","BMI - THE LONDON INDEPENDENT HOSPITAL"]
[null,null,null,null,null,null,null,null,null,null,null,null,null,null,null,null,null,"IS1","NT423","BMI - THE MANOR HOSPITAL",null,null,"NT423","BMI - THE MANOR HOSPITAL"]
[null,null,null,null,null,null,null,null,null,null,null,null,null,null,null,null,null,"IS1","NT424","BMI - THE MERIDEN HOSPITAL",null,null,"NT424","BMI - THE MERIDEN HOSPITAL"]
[null,null,null,null,null,null,null,null,null,null,null,null,null,null,null,null,null,"IS1","NT427","BMI - THE PARK HOSPITAL",null,null,"NT427","BMI - THE PARK HOSPITAL"]
[null,null,null,null,null,null,null,null,null,null,null,null,null,null,null,null,null,"IS1","NT428","BMI - THE PRINCESS MARGARET HOSPITAL",null,null,"NT428","BMI - THE PRINCESS MARGARET HOSPITAL"]
[null,null,null,null,null,null,null,null,null,null,null,null,null,null,null,null,null,"IS1","NT429","BMI - THE PRIORY HOSPITAL",null,null,"NT429","BMI - THE PRIORY HOSPITAL"]
[null,null,null,null,null,null,null,null,null,null,null,null,null,null,null,null,null,"IS1","NT430","BMI - THE RIDGEWAY HOSPITAL",null,null,"NT430","BMI - THE RIDGEWAY HOSPITAL"]
[null,null,null,null,null,null,null,null,null,null,null,null,null,null,null,null,null,"IS1","NT431","BMI - THE RUNNYMEDE HOSPITAL",null,null,"NT431","BMI - THE RUNNYMEDE HOSPITAL"]
[null,null,null,null,null,null,null,null,null,null,null,null,null,null,null,null,null,"IS1","NT432","BMI - THE SANDRINGHAM HOSPITAL",null,null,"NT432","BMI - THE SANDRINGHAM HOSPITAL"]
[null,null,null,null,null,null,null,null,null,null,null,null,null,null,null,null,null,"IS1","NT434","BMI - THE SAXON CLINIC",null,null,"NT434","BMI - THE SAXON CLINIC"]
[null,null,null,null,null,null,null,null,null,null,null,null,null,null,null,null,null,"IS1","NT435","BMI - THE SHELBURNE HOSPITAL",null,null,"NT435","BMI - THE SHELBURNE HOSPITAL"]
[null,null,null,null,null,null,null,null,null,null,null,null,null,null,null,null,null,"IS1","NT437","BMI - THE SLOANE HOSPITAL",null,null,"NT437","BMI - THE SLOANE HOSPITAL"]
[null,null,null,null,null,null,null,null,null,null,null,null,null,null,null,null,null,"IS1","NT443","BMI - THE WINTERBOURNE HOSPITAL",null,null,"NT443","BMI - THE WINTERBOURNE HOSPITAL"]
[null,null,null,null,null,null,null,null,null,null,null,null,null,null,null,null,null,"IS1","NT440","BMI - THORNBURY HOSPITAL",null,null,"NT440","BMI - THORNBURY HOSPITAL"]
[null,null,null,null,null,null,null,null,null,null,null,null,null,null,null,null,null,"IS1","NT441","BMI - THREE SHIRES HOSPITAL",null,null,"NT441","BMI - THREE SHIRES HOSPITAL"]
[null,null,null,null,null,null,null,null,null,null,null,null,null,null,null,null,null,"IS1","NT497","BMI GISBURNE PARK HOSPITAL",null,null,"NT497","BMI GISBURNE PARK HOSPITAL"]
[null,null,null,null,null,null,null,null,null,null,null,null,null,null,null,null,null,"IS1","NT455","BMI MOUNT ALVERNIA HOSPITAL",null,null,"NT455","BMI MOUNT ALVERNIA HOSPITAL"]
[null,null,null,null,null,null,null,null,null,null,null,null,null,null,null,null,null,"IS1","NT490","BMI SOUTHEND PRIVATE HOSPITAL",null,null,"NT490","BMI SOUTHEND PRIVATE HOSPITAL"]
[null,null,null,null,null,null,null,null,null,null,null,null,null,null,null,null,null,"IS1","NT446","BMI ST EDMUNDS HOSPITAL",null,null,"NT446","BMI ST EDMUNDS HOSPITAL"]
[null,null,null,null,null,null,null,null,null,null,null,null,null,null,null,null,null,"IS1","NT451","BMI THE CAVELL HOSPITAL",null,null,"NT451","BMI THE CAVELL HOSPITAL"]
[null,null,null,null,null,null,null,null,null,null,null,null,null,null,null,null,null,"IS1","NT447","BMI THE DUCHY HOSPITAL",null,null,"NT447","BMI THE DUCHY HOSPITAL"]
[null,null,null,null,null,null,null,null,null,null,null,null,null,null,null,null,null,"IS1","NT445","BMI THE EDGBASTON HOSPITAL",null,null,"NT445","BMI THE EDGBASTON HOSPITAL"]
[null,null,null,null,null,null,null,null,null,null,null,null,null,null,null,null,null,"IS1","NT448","BMI THE HUDDERSFIELD HOSPITAL",null,null,"NT448","BMI THE HUDDERSFIELD HOSPITAL"]
[null,null,null,null,null,null,null,null,null,null,null,null,null,null,null,null,null,"IS1","NT449","BMI THE LANCASTER HOSPITAL",null,null,"NT449","BMI THE LANCASTER HOSPITAL"]
[null,null,null,null,null,null,null,null,null,null,null,null,null,null,null,null,null,"IS1","NT450","BMI THE LINCOLN HOSPITAL",null,null,"NT450","BMI THE LINCOLN HOSPITAL"]
[null,null,null,null,null,null,null,null,null,null,null,null,null,null,null,null,null,"IS1","NT457","BMI WOODLANDS HOSPITAL",null,null,"NT457","BMI WOODLANDS HOSPITAL"]
[null,null,null,null,null,null,null,null,null,null,null,null,null,null,null,null,null,"IS1","NV302","CIRCLE BATH HOSPITAL",null,null,"NV302","CIRCLE BATH HOSPITAL"]
[null,null,null,null,null,null,null,null,null,null,null,null,null,null,null,null,null,"IS1","NV323","CIRCLE READING HOSPITAL",null,null,"NV323","CIRCLE READING HOSPITAL"]
[null,null,null,null,null,null,null,null,null,null,null,null,null,null,null,null,null,"IS1","NNE","DORKING HEALTHCARE LIMITED (DHC)",null,null,"NNE","DORKING HEALTHCARE LIMITED (DHC)"]
[null,null,null,null,null,null,null,null,null,null,null,null,null,null,null,null,null,"IS1","ACM","EYE CARE MEDICAL LTD",null,null,"ACM","EYE CARE MEDICAL LTD"]
[null,null,null,null,null,null,null,null,null,null,null,null,null,null,null,null,null,"IS1","NVG01","FAIRFIELD HOSPITAL",null,null,"NVG01","FAIRFIELD HOSPITAL"]
[null,null,null,null,null,null,null,null,null,null,null,null,null,null,null,null,null,"IS1","NXM","HORDER HEALTHCARE",null,null,"NXM","HORDER HEALTHCARE"]
[null,null,null,null,null,null,null,null,null,null,null,null,null,null,null,null,null,"IS1","NV1","INHEALTH LIMITED",null,null,"NV1","INHEALTH LIMITED"]
[null,null,null,null,null,null,null,null,null,null,null,null,null,null,null,null,null,"IS1","NCR","ISIGHT",null,null,"NCR","ISIGHT"]
[null,null,null,null,null,null,null,null,null,null,null,null,null,null,null,null,null,"IS1","ADP","KIMS HOSPITAL",null,null,"ADP","KIMS HOSPITAL"]
[null,null,null,null,null,null,null,null,null,null,null,null,null,null,null,null,null,"IS1","ACG20","NEWMEDICA - BRISTOL - LITFIELD HOUSE",null,null,"ACG20","NEWMEDICA - BRISTOL - LITFIELD HOUSE"]
[null,null,null,null,null,null,null,null,null,null,null,null,null,null,null,null,null,"IS1","Q1S8W","NEWMEDICA - BURY ST EDMUNDS",null,null,"Q1S8W","NEWMEDICA - BURY ST EDMUNDS"]
[null,null,null,null,null,null,null,null,null,null,null,null,null,null,null,null,null,"IS1","ACG36","NEWMEDICA - EXETER - GLEN HOUSE",null,null,"ACG36","NEWMEDICA - EXETER - GLEN HOUSE"]
[null,null,null,null,null,null,null,null,null,null,null,null,null,null,null,null,null,"IS1","ACG41","NEWMEDICA - FROME",null,null,"ACG41","NEWMEDICA - FROME"]
[null,null,null,null,null,null,null,null,null,null,null,null,null,null,null,null,null,"IS1","L0D9W","NEWMEDICA - GLOUCESTER (BRIGHOUSE COURT)",null,null,"L0D9W","NEWMEDICA - GLOUCESTER (BRIGHOUSE COURT)"]
[null,null,null,null,null,null,null,null,null,null,null,null,null,null,null,null,null,"IS1","ACG37","NEWMEDICA - IPSWICH",null,null,"ACG37","NEWMEDICA - IPSWICH"]
[null,null,null,null,null,null,null,null,null,null,null,null,null,null,null,null,null,"IS1","ACG38","NEWMEDICA - LANGFORD",null,null,"ACG38","NEWMEDICA - LANGFORD"]
[null,null,null,null,null,null,null,null,null,null,null,null,null,null,null,null,null,"IS1","ACG39","NEWMEDICA - SWINDON",null,null,"ACG39","NEWMEDICA - SWINDON"]
[null,null,null,null,null,null,null,null,null,null,null,null,null,null,null,null,null,"IS1","ACG24","NEWMEDICA - TEESSIDE - NORTH ORMESBY",null,null,"ACG24","NEWMEDICA - TEESSIDE - NORTH ORMESBY"]
[null,null,null,null,null,null,null,null,null,null,null,null,null,null,null,null,null,"IS1","ACG40","NEWMEDICA - WAKEFIELD",null,null,"ACG40","NEWMEDICA - WAKEFIELD"]
[null,null,null,null,null,null,null,null,null,null,null,null,null,null,null,null,null,"IS1","ACG35","NEWMEDICA - WINTERTON",null,null,"ACG35","NEWMEDICA - WINTERTON"]
[null,null,null,null,null,null,null,null,null,null,null,null,null,null,null,null,null,"IS1","ACG30","NEWMEDICA - WORKSOP - DUKERIES",null,null,"ACG30","NEWMEDICA - WORKSOP - DUKERIES"]
[null,null,null,null,null,null,null,null,null,null,null,null,null,null,null,null,null,"IS1","ACG13","NEWMEDICA COMMUNITY OPHTHALMOLOGY - GLOUCESTERSHIRE - GLOUCESTER (ASPEN CENTRE) (ACG13)",null,null,"ACG13","NEWMEDICA COMMUNITY OPHTHALMOLOGY - GLOUCESTERSHIRE - GLOUCESTER (ASPEN CENTRE) (ACG13)"]
[null,null,null,null,null,null,null,null,null,null,null,null,null,null,null,null,null,"IS1","ACG23","NEWMEDICA COMMUNITY OPHTHALMOLOGY - IPSWICH - ST HELEN'S HEALTHCARE",null,null,"ACG23","NEWMEDICA COMMUNITY OPHTHALMOLOGY - IPSWICH - ST HELEN'S HEALTHCARE"]
[null,null,null,null,null,null,null,null,null,null,null,null,null,null,null,null,null,"IS1","ACG19","NEWMEDICA COMMUNITY OPHTHALMOLOGY - LEEDS",null,null,"ACG19","NEWMEDICA COMMUNITY OPHTHALMOLOGY - LEEDS"]
[null,null,null,null,null,null,null,null,null,null,null,null,null,null,null,null,null,"IS1","ACG07","NEWMEDICA COMMUNITY OPHTHALMOLOGY - LEICESTERSHIRE - LEICESTER (STONEYGATE EYE HOSPITAL)",null,null,"ACG07","NEWMEDICA COMMUNITY OPHTHALMOLOGY - LEICESTERSHIRE - LEICESTER (STONEYGATE EYE HOSPITAL)"]
[null,null,null,null,null,null,null,null,null,null,null,null,null,null,null,null,null,"IS1","ACG09","NEWMEDICA COMMUNITY OPHTHALMOLOGY - NORTH DERBYSHIRE - BARLBOROUGH TREATMENT CENTRE",null,null,"ACG09","NEWMEDICA COMMUNITY OPHTHALMOLOGY - NORTH DERBYSHIRE - BARLBOROUGH TREATMENT CENTRE"]
[null,null,null,null,null,null,null,null,null,null,null,null,null,null,null,null,null,"IS1","ACG12","NEWMEDICA COMMUNITY OPHTHALMOLOGY - NORTH EAST LINCOLNSHIRE - GRIMSBY",null,null,"ACG12","NEWMEDICA COMMUNITY OPHTHALMOLOGY - NORTH EAST LINCOLNSHIRE - GRIMSBY"]
[null,null,null,null,null,null,null,null,null,null,null,null,null,null,null,null,null,"IS1","ACG08","NEWMEDICA OPHTHALMOLOGY - NUNEATON - CAMP HILL - GP LED HEALTH CENTRE",null,null,"ACG08","NEWMEDICA OPHTHALMOLOGY - NUNEATON - CAMP HILL - GP LED HEALTH CENTRE"]
[null,null,null,null,null,null,null,null,null,null,null,null,null,null,null,null,null,"IS1","NMN","PENINSULA HEALTH LLP",null,null,"NMN","PENINSULA HEALTH LLP"]
[null,null,null,null,null,null,null,null,null,null,null,null,null,null,null,null,null,"IS1","NEQ","PHOENIX HEALTH SOLUTIONS LIMITED HQ",null,null,"NEQ","PHOENIX HEALTH SOLUTIONS LIMITED HQ"]
[null,null,null,null,null,null,null,null,null,null,null,null,null,null,null,null,null,"IS1","NEY","PIONEER HEALTHCARE LIMITED",null,null,"NEY","PIONEER HEALTHCARE LIMITED"]
[null,null,null,null,null,null,null,null,null,null,null,null,null,null,null,null,null,"IS1","NTP13","PRACTICE PLUS GROUP HOSPITAL - BARLBOROUGH",null,null,"NTP13","PRACTICE PLUS GROUP HOSPITAL - BARLBOROUGH"]
[null,null,null,null,null,null,null,null,null,null,null,null,null,null,null,null,null,"IS1","NTPH2","PRACTICE PLUS GROUP HOSPITAL - EMERSONS GREEN",null,null,"NTPH2","PRACTICE PLUS GROUP HOSPITAL - EMERSONS GREEN"]
[null,null,null,null,null,null,null,null,null,null,null,null,null,null,null,null,null,"IS1","NTP15","PRACTICE PLUS GROUP HOSPITAL - ILFORD",null,null,"NTP15","PRACTICE PLUS GROUP HOSPITAL - ILFORD"]
[null,null,null,null,null,null,null,null,null,null,null,null,null,null,null,null,null,"IS1","NTPH5","PRACTICE PLUS GROUP HOSPITAL - PLYMOUTH",null,null,"NTPH5","PRACTICE PLUS GROUP HOSPITAL - PLYMOUTH"]
[null,null,null,null,null,null,null,null,null,null,null,null,null,null,null,null,null,"IS1","NTPH1","PRACTICE PLUS GROUP HOSPITAL - SHEPTON MALLET",null,null,"NTPH1","PRACTICE PLUS GROUP HOSPITAL - SHEPTON MALLET"]
[null,null,null,null,null,null,null,null,null,null,null,null,null,null,null,null,null,"IS1","NTP11","PRACTICE PLUS GROUP HOSPITAL - SOUTHAMPTON",null,null,"NTP11","PRACTICE PLUS GROUP HOSPITAL - SOUTHAMPTON"]
[null,null,null,null,null,null,null,null,null,null,null,null,null,null,null,null,null,"IS1","NTPAE","PRACTICE PLUS GROUP OPHTHALMOLOGY - NORTH WEST",null,null,"NTPAE","PRACTICE PLUS GROUP OPHTHALMOLOGY - NORTH WEST"]
[null,null,null,null,null,null,null,null,null,null,null,null,null,null,null,null,null,"IS1","NTPAD","PRACTICE PLUS GROUP SURGICAL CENTRE - ST MARYS PORTSMOUTH",null,null,"NTPAD","PRACTICE PLUS GROUP SURGICAL CENTRE - ST MARYS PORTSMOUTH"]
[null,null,null,null,null,null,null,null,null,null,null,null,null,null,null,null,null,"IS1","NAM","PROBUS SURGERY LIMITED",null,null,"NAM","PROBUS SURGERY LIMITED"]
[null,null,null,null,null,null,null,null,null,null,null,null,null,null,null,null,null,"IS1","NVC","RAMSAY HEALTHCARE UK OPERATIONS LIMITED",null,null,"NVC","RAMSAY HEALTHCARE UK OPERATIONS LIMITED"]
[null,null,null,null,null,null,null,null,null,null,null,null,null,null,null,null,null,"IS1","NT3","SPIRE HEALTHCARE",null,null,"NT3","SPIRE HEALTHCARE"]
[null,null,null,null,null,null,null,null,null,null,null,null,null,null,null,null,null,"IS1","AAH","TETBURY HOSPITAL TRUST LTD",null,null,"AAH","TETBURY HOSPITAL TRUST LTD"]
[null,null,null,null,null,null,null,null,null,null,null,null,null,null,null,null,null,"IS1","NQT","VIRGIN CARE LTD",null,null,"NQT","VIRGIN CARE LTD"]
[null,null,null,null,null,null,null,null,null,null,null,null,null,null,null,null,null,"IS1","NDA","VIRGIN CARE SERVICES LTD",null,null,"NDA","VIRGIN CARE SERVICES LTD"]